{"text_format":"1","workbook":"xlsx","n_sheets":9,"sheets":["App. 2-AC_Customer Engagement","App.2-FA Proposed REG Inves (2","App.2-FB Calc of REG Improv (2","App.2-FC Calc of REG Expans (2","App.2-I LF_CDM_WF_OLD","lists","lists2","Sheet19","Sheet1"],"not_rendered":{"charts":0,"images":0,"macros":1,"external_links":6,"defined_names":94,"comments":0,"pivot_tables":0},"unopened":[],"bounds":{"document_bytes":16777216,"sheet_cells":100000,"rows_first":2000,"rows_last":500,"rows_between":2000,"halvings":0,"cell_chars":16384,"cell_head_chars":4096},"cells_cut":0,"cells_raw":0,"read":"whole","date_system":"1900"}

{"sheet":"App. 2-AC_Customer Engagement","index":0,"n_rows":45,"n_cols":3,"rows_kept":45,"cut":false,"hidden":false,"merged":[[9,0,9,2],[8,0,8,2]]}
[null,"File Number:",{"$f":"EBNUMBER","v":{"$error":"#REF!"}}]
[null,"Exhibit:"]
[null,"Tab:"]
[null,"Schedule:"]
[null,"Page:"]
[]
[null,"Date:"]
[]
["Appendix 2-AC"]
["Customer Engagement Activities Summary"]
[]
["Provide a list of customer engagement activities","Provide a list of customer needs and preferences identified through each engagement activity","Actions taken to respond to identified needs and preferences.  If no action was taken, explain why."]
["Residential and General Service (GS<50) Focus Groups\n\n• Barrie – November 17, 2014\n10 GS<50 participants\n7 Residential participants\n\n• Markham – November 18, 2014\n10 GS<50 participants\n10 Residential participants\n\n• Vaughan – November 19, 2014\n6 GS<50 participants\n6 Residential participants\n\nConsultation sessions were structured around the Primer developed as a consultation tool. Primer booklets were distributed and participants were asked to read and complete the feedback questions.  A subsequent discussion of each section was facilitated by the moderator.\n","1.  Restoration time:  Customers did not express any serious concerns regarding current restoration times.\n2. Investments in new technologies: A new billing system is being implemented at a significant cost to the utility.  Based on the information provided in the consultation, customers did not feel as though the business case had been made for this investment.  GS<50 customers were most likely to question the need for this investment as they did not see any correlation to reliability.                                                                                                                                                                                                                                                                                                                                                                                                      3. Weather Hardening:  Participants were generally split regarding the need for PowerStream to make investments in preparation for extreme weather events. \n4. Communication: Customers expressed that they would prefer better communication during outages.","1.  Customers are satisfied with the current level of service they are receiving in regards to restoration time.  No actions were taken.                                                                                                                                                                                                        2. In response to customer comments, the business case for the new billing system was strengthened in the DSP (Appendix A-Project Investment Summaries)                                                                                                                                                                                                                                   3.  PowerStream’s approach to weather hardening is consistent with customer preferences.  A modest approach to investments has been taken which balances risk and cost.  Four recommendations from the report commissionned by the utility after the Ice Storm in December 2013 are being adopted: Replacing rear lot systems, moving systems that are below grade at transformer stations to above grade, strengthening structural integrity of four circuit pole lines and looking at new standards for multi-circuit pole lines, commencing with those running north/south to coincide with the highest risk level.\n4. Improving communications with customers during outages was identified as an area for improvement coming out of a review conducted in 2014.  As a result, PowerStream has made a number of improvements to increase the volume and accuracy of communications to customers during outages. Two of these process improvements are described below:\n• PowerStream has implemented an Outage Notification Service which allows customers to register to receive emails when an outage occurs at their location.  These notifications include status updates if there are changes to the incident as well as a final notification once power has been restored.\n• A social media strategy has been developed in order to leverage best practices from emerging communication technology to enable PowerStream to effectively address the volume of messages and to provide the best information to customers.\n"]
["Mid-Market General Service Workshop (GS>50)\n\n• Barrie – December 9, 2014\n6 Participants\n\n• Richmond Hill – December 10, 2014\n12 Participants\n\n\nThese sessions were structured around the content of the primer and the DSP.  PowerStream made a detailed presentation with customers having the opportunity to pose questions to staff.  Innovative then facilitated breakout groups where participants were guided through the primer sections and then asked to fill in their answers to the questions independently.  A subsequent discussion of each section was facilitated by the moderators.\n","1. Most customers are content with the reliability they receive.  Some commercial customers expressed concerns about small flickering outages that can affect sensitive machinery.\n2. Reliability:  Reliability is seen as more important than cost.","1. Capital expenditure plan is designed to maintain current reliability levels (no degradation).  Modest improvements due to the remediation of worst performing assets.\nExample: Cable remediation \n2. PowerStream will continue with the current asset remediation program to ensure reliability.  Some modest improvements may be realized as a result of remediation of worst performing feeders.\n"]
["Key Accounts Workshop\n\n• December 10, 2014\nYork Region - 8 Participants\n\nThese sessions were structured around the content of the primer and the DSP.  PowerStream made a detailed presentation with customers having the opportunity to pose questions to staff.  Innovative then facilitated a feedback session where participants were guided through the primer sections and then asked to fill in their answers to the questions independently.  A subsequent discussion of each section was facilitated by the moderator.","1. Investments in new technologies:   New technology was seen as a solution to improving business practices for key accounts customers.  This particular customer class had 62 per cent of respondents who believed that investments in new technology should be a priority for PowerStream.\n2. Communication:  Improving communication during outages is a concern for Key Accounts customers, however, only at the right cost.\n3. Weather hardening: As with other rate classes, customers were generally divided regarding investing for extreme weather, however, many saw it as a valuable insurance policy.","1. PowerStream will continue to invest in new technologies to improve its systems and streghthen business practices.\n2. Key Accounts customers will benefit from the changes to communications protocols mentioned above, including the Outage Notification Service and improved communication through social media channels.\n3. A balanced approach will be undertaken in regards to weather hardening measures in order to remain consistent with the preferences of customers."]
["Online Primer\n\nNovember 17-December 22 2014\n\n1,553 consumers completed the entire Online Primer\n\nThe primer developed for this consultation process was available online to all PowerStream customers.  Participants were asked to answer survey questions throughout.","1. Aging infrastructure: Customers generally accepted PowerStream’s current practices for replacing distribution assets.\n2.  Communication:  Communication during outages was noted as a key concern for participants.","1. In considering comments received from customers, PowerStream will continue investing to reduce power outages as opposed to scaling back infrastructure investment to reduce the impact on electricity rates.\n2. Improvements to communication are being made across all customer classes."]
["Residential and General Service Telephone Survey\n\nJanuary 14-29 2015\n\n1001 Residential Customers\n201 General Service Customers\n\nThis questionnaire is a direct result of the previously-mentioned Online Primer and Primer-led Consultation Sessions conducted in 2014. Feedback, both positive and negative, from these two previous phases helped guide PowerStream in the initial question design phase. ","1. Communication: Noted as one of the leading concerns for customers surveyed\n2.  Improved response time during outages is desired by customers, though the majority are satisfied by PowerStream's response during outages.","1.  Previously mentioned improvements in this area will help address customer concerns.\n2. Though a number of customers stated that improved response times would be appreciated, they are not sure how the utility could improve its response to outages.  Some concerns regarding restoration time stemmed from the Ice Storm, when prompt restoration of power was not always feasible."]
[]
[]
[]
[]
[]
[]
[]
[]
[]
[]
[]
[]
[]
[]
[]
[]
[]
[]
[]
[]
[]
[]
[]
[]
[]
[]
[]
["Note:  Use \"ALT-ENTER\" to go to the next line within a cell"]

{"sheet":"App.2-FA Proposed REG Inves (2","index":1,"n_rows":92,"n_cols":7,"rows_kept":92,"cut":false,"hidden":true,"merged":[[16,0,16,6],[17,0,17,6],[8,0,8,6],[9,0,9,6],[11,0,11,6],[12,0,12,6],[13,0,13,5],[14,0,14,5]]}
[null,null,null,null,null,"File Number:",{"$f":"EBNUMBER","v":{"$error":"#REF!"}}]
[null,null,null,null,null,"Exhibit:"]
[null,null,null,null,null,"Tab:"]
[null,null,null,null,null,"Schedule:"]
[null,null,null,null,null,"Page:"]
[]
[null,null,null,null,null,"Date:"]
[]
["Appendix 2-FA"]
["Renewable Generation Connection Investment Summary (over the rate setting period)"]
[]
["Enter the details of the Renewable Generation Connection projects as described in Section 2.5.2.5 of the Filing Requirements."]
["All costs entered on this page will be transferred to the appropriate cells in the appendices that follow."]
["For Part A, Renewable Enabling Improvements (REI), these amounts will be transferred to Appendix 2 - FB"]
["For Part B, Expansions, these amounts will be transferred to Appendix 2 - FC"]
[]
["If there are more than five projects proposed to be in-service in a certain year, please amend the tables below and ensure that the formulae for the Total Amounts in any given rate year are updated."]
["Based on the current methodology and allocation, amounts allocated represent 6% for REI Connection Investments and 17% for Expansion Investments. (pg 15, EB-2009-0349)"]
[]
[]
["Part A"]
["REI Investments (Direct Benefit at 6%)",null,2015,{"$f":"C22+1","v":2016},{"$f":"D22+1","v":2017},2018,2019]
["Project 1"]
["Name: REI Connection Project"]
["Capital Costs",null,1000,0,1000,0,0]
["OM&A (Start-Up)",null,0,0,0,0,0]
["OM&A (Ongoing)",null,0,0,0,0,0]
[]
["Project 2"]
["Name: REI Connection Project"]
["Capital Costs",null,0,0,0,0,0]
["OM&A (Start-Up)",null,0,0,0,0,0]
["OM&A (Ongoing)",null,0,0,0,0,0]
[]
["Project 3"]
["Name: REI Connection Project"]
["Capital Costs",null,0,0,0,0,0]
["OM&A (Start-Up)",null,0,0,0,0,0]
["OM&A (Ongoing)",null,0,0,0,0,0]
[]
["Project 4"]
["Name: REI Connection Project"]
["Capital Costs",null,0,0,0,0,0]
["OM&A (Start-Up)",null,0,0,0,0,0]
["OM&A (Ongoing)",null,0,0,0,0,0]
[]
["Project 5"]
["Name: REI Connection Project"]
["Capital Costs",null,0,0,0,0,0]
["OM&A (Start-Up)",null,0,0,0,0,0]
["OM&A (Ongoing)",null,0,0,0,0,0]
[]
["Total Capital Costs",null,{"$f":"SUM(C49,C43,C37,C31,C25)","v":1000},{"$f":"SUM(D49,D43,D37,D31,D25)","v":0},1000,0,0]
["Total OM&A (Start-Up)",null,{"$f":"SUM(C50,C44,C38,C32,C26)","v":0},0,0,0,0]
["Total OM&A (Ongoing)",null,{"$f":"SUM(C51,C45,C39,C33,C27)","v":0},0,0,0,0]
[]
[]
["Part B"]
["Expansion Investments (Direct Benefit at 17%)",null,2015,{"$f":"C59+1","v":2016},{"$f":"D59+1","v":2017},2018,2019]
["Project 1"]
["Name: Expansion Connection Project"]
["Capital Costs",null,0,0,0,0,0]
["OM&A (Start-Up)",null,0,0,0,0,0]
["OM&A (Ongoing)",null,0,0,0,0,0]
[]
["Project 2"]
["Name: Expansion Connection Project"]
["Capital Costs",null,0,0,0,0,0]
["OM&A (Start-Up)",null,0,0,0,0,0]
["OM&A (Ongoing)",null,0,0,0,0,0]
[]
["Project 3"]
["Name: Expansion Connection Project"]
["Capital Costs",null,0,0,0,0,0]
["OM&A (Start-Up)",null,0,0,0,0,0]
["OM&A (Ongoing)",null,0,0,0,0,0]
[]
["Project 4"]
["Name: Expansion Connection Project"]
["Capital Costs",null,0,0,0,0,0]
["OM&A (Start-Up)",null,0,0,0,0,0]
["OM&A (Ongoing)",null,0,0,0,0,0]
[]
["Project 5"]
["Name: Expansion Connection Project"]
["Capital Costs",null,0,0,0,0,0]
["OM&A (Start-Up)",null,0,0,0,0,0]
["OM&A (Ongoing)",null,0,0,0,0,0]
[]
["Total Capital Costs",null,{"$f":"SUM(C86,C80,C74,C68,C62)","v":0},{"$f":"SUM(D86,D80,D74,D68,D62)","v":0},0,0,0]
["Total OM&A (Start-Up)",null,{"$f":"SUM(C87,C81,C75,C69,C63)","v":0},0,0,0,0]
["Total OM&A (Ongoing)",null,{"$f":"SUM(C88,C82,C76,C70,C64)","v":0},0,0,0,0]

{"sheet":"App.2-FB Calc of REG Improv (2","index":2,"n_rows":95,"n_cols":18,"rows_kept":95,"cut":false,"hidden":true,"merged":[[51,4,51,5],[51,7,51,8],[51,10,51,11],[51,13,51,14],[51,16,51,17],[16,9,16,11],[16,12,16,14],[16,15,16,17],[46,0,46,11],[48,0,48,11],[49,0,49,1],[8,0,8,6],[9,0,9,6],[11,0,11,6],[12,0,12,6],[13,0,13,6],[16,3,16,5],[16,6,16,8]]}
[null,null,null,null,null,"File Number:",{"$f":"EBNUMBER","v":{"$error":"#REF!"}}]
[null,null,null,null,null,"Exhibit:"]
[null,null,null,null,null,"Tab:"]
[null,null,null,null,null,"Schedule:"]
[null,null,null,null,null,"Page:"]
[]
[null,null,null,null,null,"Date:"]
[]
["Appendix 2-FB"]
["Calculation of Renewable Generation Connection Direct Benefits/Provincial Amount: Renewable Enabling Improvement Investments"]
[]
["This table will calculate the distributor/provincial shares of the investments entered in Part A of Appendix 2-FA."]
["Enter values in green shaded cells: WCA percentage, debt percentages, interest rates, kWh, tax rates, amortization period, CCA Class and percentage."]
["Rate Riders are not calculated for Test Year as these assets and costs are already in the distributor's rate base/revenue requirement."]
[]
[]
[null,null,null,"2015 Test Year",null,null,2016,null,null,2017,2016,null,2018,null,null,2019]
[null,null,null,null,"Direct Benefit","Provincial",null,"Direct Benefit","Provincial",null,"Direct Benefit","Provincial",null,"Direct Benefit","Provincial",null,"Direct Benefit","Provincial"]
[null,null,null,"Total",0.06,0.94,"Total",0.06,0.94,"Total",0.06,0.94,"Total",0.06,0.94,"Total",0.06,0.94]
["Net Fixed Assets (average)",null,null,{"$f":"D82","v":490},{"$f":"D20*E19","v":29.4},{"$f":"D20*F19","v":460.59999999999997},{"$f":"E82","v":960},{"$f":"G20*H19","v":57.599999999999994},{"$f":"G20*I19","v":902.4},{"$f":"F82","v":1410},{"$f":"J20*K19","v":84.6},{"$f":"J20*L19","v":1325.3999999999999},{"$f":"G82","v":1840},{"$f":"M20*N19","v":110.39999999999999},{"$f":"M20*O19","v":1729.6},{"$f":"H82","v":1760},{"$f":"P20*Q19","v":105.6},{"$f":"P20*R19","v":1654.3999999999999}]
["Incremental OM&A (on-going, N/A for Provincial Recovery)",null,null,{"$f":"'App.2-FA Proposed REG Inves (2'!C55","v":0},{"$f":"D21","v":0},null,{"$f":"'App.2-FA Proposed REG Inves (2'!D55","v":0},{"$f":"G21","v":0},null,{"$f":"'App.2-FA Proposed REG Inves (2'!E55","v":0},{"$f":"J21","v":0},null,{"$f":"'App.2-FA Proposed REG Inves (2'!F55","v":0},{"$f":"M21","v":0},null,{"$f":"'App.2-FA Proposed REG Inves (2'!G55","v":0},{"$f":"P21","v":0}]
["Incremental OM&A (start-up, applicable for Provincial Recovery)",null,null,{"$f":"'App.2-FA Proposed REG Inves (2'!C54","v":0},{"$f":"D22*E19","v":0},{"$f":"D22*F19","v":0},{"$f":"'App.2-FA Proposed REG Inves (2'!D54","v":0},{"$f":"G22*H19","v":0},{"$f":"G22*I19","v":0},{"$f":"'App.2-FA Proposed REG Inves (2'!E54","v":0},{"$f":"J22*K19","v":0},{"$f":"J22*L19","v":0},{"$f":"'App.2-FA Proposed REG Inves (2'!F54","v":0},{"$f":"M22*N19","v":0},{"$f":"M22*O19","v":0},{"$f":"'App.2-FA Proposed REG Inves (2'!G54","v":0},{"$f":"P22*Q19","v":0},{"$f":"P22*R19","v":0}]
["WCA",0.13,null,null,{"$f":"(E21+E22)*$B$23","v":0},{"$f":"F22*$B$23","v":0},null,{"$f":"(H21+H22)*$B$23","v":0},{"$f":"I22*$B$23","v":0},null,{"$f":"(K21+K22)*$B$23","v":0},{"$f":"L22*$B$23","v":0},null,{"$f":"(N21+N22)*$B$23","v":0},{"$f":"O22*$B$23","v":0},null,{"$f":"(Q21+Q22)*$B$23","v":0},{"$f":"R22*$B$23","v":0}]
["Rate Base",null,null,null,{"$f":"SUM(E20+E23)","v":29.4},{"$f":"SUM(F20+F23)","v":460.59999999999997},null,{"$f":"SUM(H20+H23)","v":57.599999999999994},{"$f":"SUM(I20+I23)","v":902.4},null,{"$f":"SUM(K20+K23)","v":84.6},{"$f":"SUM(L20+L23)","v":1325.3999999999999},null,{"$f":"SUM(N20+N23)","v":110.39999999999999},{"$f":"SUM(O20+O23)","v":1729.6},null,{"$f":"SUM(Q20+Q23)","v":105.6},{"$f":"SUM(R20+R23)","v":1654.3999999999999}]
[]
[]
["Deemed ST Debt",0.04,null,null,{"$f":"E24*$B$27","v":1.1759999999999999},{"$f":"F24*$B$27","v":18.423999999999999},null,{"$f":"H24*$B$27","v":2.3039999999999998},{"$f":"I24*$B$27","v":36.095999999999997},null,{"$f":"K24*$B$27","v":3.3839999999999999},{"$f":"L24*$B$27","v":53.015999999999998},null,{"$f":"N24*$B$27","v":4.4159999999999995},{"$f":"O24*$B$27","v":69.183999999999997},null,{"$f":"Q24*$B$27","v":4.2240000000000002},{"$f":"R24*$B$27","v":66.176000000000002}]
["Deemed LT Debt",0.56000000000000005,null,null,{"$f":"E24*$B$28","v":16.464000000000002},{"$f":"F24*$B$28","v":257.93599999999998},null,{"$f":"H24*$B$28","v":32.256},{"$f":"I24*$B$28","v":505.34400000000005},null,{"$f":"K24*$B$28","v":47.376000000000005},{"$f":"L24*$B$28","v":742.22400000000005},null,{"$f":"N24*$B$28","v":61.823999999999998},{"$f":"O24*$B$28","v":968.57600000000002},null,{"$f":"Q24*$B$28","v":59.136000000000003},{"$f":"R24*$B$28","v":926.46400000000006}]
["Deemed Equity",0.4,null,null,{"$f":"E24*$B$29","v":11.76},{"$f":"F24*$B$29","v":184.24},null,{"$f":"H24*$B$29","v":23.04},{"$f":"I24*$B$29","v":360.96000000000004},null,{"$f":"K24*$B$29","v":33.839999999999996},{"$f":"L24*$B$29","v":530.16},null,{"$f":"N24*$B$29","v":44.16},{"$f":"O24*$B$29","v":691.84},null,{"$f":"Q24*$B$29","v":42.24},{"$f":"R24*$B$29","v":661.76}]
[]
["ST Interest",2.4E-2,null,null,{"$f":"E27*$B31","v":2.8223999999999999E-2},{"$f":"F27*$B31","v":0.44217600000000001},null,{"$f":"H27*$B31","v":5.5295999999999998E-2},{"$f":"I27*$B31","v":0.86630399999999996},null,{"$f":"K27*$B31","v":8.1215999999999997E-2},{"$f":"L27*$B31","v":1.272384},null,{"$f":"N27*$B31","v":0.10598399999999999},{"$f":"O27*$B31","v":1.6604159999999999},null,{"$f":"Q27*$B31","v":0.10137600000000001},{"$f":"R27*$B31","v":1.5882240000000001}]
["LT Interest",5.6000000000000001E-2,null,null,{"$f":"E28*$B32","v":0.92198400000000014},14.444415999999999,null,{"$f":"H28*$B32","v":1.8063359999999999},28.299264000000004,null,{"$f":"K28*$B32","v":2.6530560000000003},41.564544000000005,null,{"$f":"N28*$B32","v":3.4621439999999999},54.240256000000002,null,{"$f":"Q28*$B32","v":3.3116160000000003},51.881984000000003]
["ROE",8.5000000000000006E-2,null,null,0.99960000000000004,15.660400000000003,null,1.9584000000000001,30.681600000000007,null,2.8763999999999998,45.063600000000001,null,3.7536,58.806400000000004,null,3.5904000000000003,56.249600000000001]
["Cost of Capital Total",null,null,null,{"$f":"SUM(E31:E33)","v":1.9498080000000002},{"$f":"SUM(F31:F33)","v":30.546992000000003},null,{"$f":"SUM(H31:H33)","v":3.8200320000000003},{"$f":"SUM(I31:I33)","v":59.847168000000011},null,{"$f":"SUM(K31:K33)","v":5.6106720000000001},{"$f":"SUM(L31:L33)","v":87.900528000000008},null,{"$f":"SUM(N31:N33)","v":7.3217280000000002},{"$f":"SUM(O31:O33)","v":114.70707200000001},null,{"$f":"SUM(Q31:Q33)","v":7.0033920000000007},{"$f":"SUM(R31:R33)","v":109.719808}]
[]
["OM&A",null,null,null,{"$f":"E21+E22","v":0},{"$f":"F22","v":0},null,{"$f":"H21+H22","v":0},{"$f":"I22","v":0},null,{"$f":"K21+K22","v":0},{"$f":"L22","v":0},null,{"$f":"N21+N22","v":0},{"$f":"O22","v":0},null,{"$f":"Q21+Q22","v":0},{"$f":"R22","v":0}]
["Amortization",null,null,{"$f":"D77","v":20},{"$f":"D37*E$19","v":1.2},{"$f":"D37*F$19","v":18.799999999999997},{"$f":"E76+E77","v":40},{"$f":"G37*H$19","v":2.4},{"$f":"G37*I$19","v":37.599999999999994},{"$f":"F76+F77","v":60},{"$f":"J37*K$19","v":3.5999999999999996},{"$f":"J37*L$19","v":56.4},{"$f":"G76+G77","v":80},{"$f":"M37*N$19","v":4.8},{"$f":"M37*O$19","v":75.199999999999989},{"$f":"H76+H77","v":80},{"$f":"P37*Q$19","v":4.8},{"$f":"P37*R$19","v":75.199999999999989}]
["Grossed-up PILs",null,null,null,{"$f":"E65","v":0},{"$f":"F65","v":0},null,{"$f":"H65","v":0},{"$f":"I65","v":0},null,{"$f":"K65","v":0},{"$f":"L65","v":0},null,{"$f":"N65","v":0},{"$f":"O65","v":0},null,{"$f":"Q65","v":0},{"$f":"R65","v":0}]
[]
["Revenue Requirement",null,null,null,{"$f":"SUM(E34:E38)","v":3.1498080000000002},{"$f":"SUM(F34:F38)","v":49.346992},null,{"$f":"SUM(H34:H38)","v":6.2200319999999998},{"$f":"SUM(I34:I38)","v":97.447168000000005},null,{"$f":"SUM(K34:K38)","v":9.2106719999999989},{"$f":"SUM(L34:L38)","v":144.30052800000001},null,{"$f":"SUM(N34:N38)","v":12.121728000000001},{"$f":"SUM(O34:O38)","v":189.907072},null,{"$f":"SUM(Q34:Q38)","v":11.803392000000001},{"$f":"SUM(R34:R38)","v":184.91980799999999}]
[]
[]
["Provincial Rate Protection",null,null,null,null,{"$f":"F40","v":49.346992},null,null,{"$f":"I40","v":97.447168000000005},null,null,{"$f":"L40","v":144.30052800000001},null,null,{"$f":"O40","v":189.907072},null,null,{"$f":"R40","v":184.91980799999999}]
[]
["Monthly Amount Paid by IESO",null,null,null,null,{"$f":"F43/12","v":4.1122493333333336},null,null,{"$f":"I43/12","v":8.1205973333333343},null,null,{"$f":"L43/12","v":12.025044000000001},null,null,{"$f":"O43/12","v":15.825589333333333},null,null,{"$f":"R43/12","v":15.409984}]
[]
["Note 1: The difference between the actual costs of approved eligible investments and revenue received from the IESO should be recorded in a variance account.  The Board may provide "]
["regulatory accounting guidance regarding a variance account either in an individual proceeding or on a generic basis."]
["Note 2: For the 2014 Test Year, Costs and Revenues of the Direct Benefit are to be included in the test year applicant Rate Base and Revenues.  "]
[]
["PILs Calculation"]
[null,null,null,null,2015,null,null,{"$f":"E52+1","v":2016},null,null,{"$f":"H52+1","v":2017},null,null,{"$f":"K52+1","v":2018},null,null,{"$f":"N52+1","v":2019}]
["Income Tax",null,null,null,"Direct Benefit","Provincial",null,"Direct Benefit","Provincial",null,"Direct Benefit","Provincial",null,"Direct Benefit","Provincial",null,"Direct Benefit","Provincial"]
[null,null,null,null,null,null,null,null,null,null,null,null,"Total",null,null,"Total"]
["Net Income - ROE on Rate Base",null,null,null,{"$f":"E33","v":0.99960000000000004},{"$f":"F33","v":15.660400000000003},null,{"$f":"H33","v":1.9584000000000001},{"$f":"I33","v":30.681600000000007},null,{"$f":"K33","v":2.8763999999999998},{"$f":"L33","v":45.063600000000001},null,{"$f":"N33","v":3.7536},{"$f":"O33","v":58.806400000000004},null,{"$f":"Q33","v":3.5904000000000003},{"$f":"R33","v":56.249600000000001}]
["Amortization (6% DB and 94% P)",null,null,null,{"$f":"E37","v":1.2},{"$f":"F37","v":18.799999999999997},null,{"$f":"H37","v":2.4},{"$f":"I37","v":37.599999999999994},null,{"$f":"K37","v":3.5999999999999996},{"$f":"L37","v":56.4},null,{"$f":"N37","v":4.8},{"$f":"O37","v":75.199999999999989},null,{"$f":"Q37","v":4.8},{"$f":"R37","v":75.199999999999989}]
["CCA (6% DB and 94% P)",null,null,null,{"$f":"-D94*E$19","v":-2.4},{"$f":"-D94*F$19","v":-37.599999999999994},null,{"$f":"-E94*H$19","v":-4.6079999999999997},{"$f":"-E94*I$19","v":-72.191999999999993},null,{"$f":"-F94*K$19","v":-4.2393600000000005},{"$f":"-F94*L$19","v":-66.416640000000001},null,{"$f":"-G94*N$19","v":-3.9002112000000002},{"$f":"-G94*O$19","v":-61.103308800000008},null,{"$f":"-H94*Q$19","v":-3.5881943040000004},{"$f":"-H94*R$19","v":-56.215044096000007}]
["Taxable income",null,null,null,{"$f":"SUM(E55:E57)","v":-0.20039999999999969},{"$f":"SUM(F55:F57)","v":-3.1395999999999944},null,{"$f":"SUM(H55:H57)","v":-0.24960000000000004},{"$f":"SUM(I55:I57)","v":-3.9103999999999957},null,{"$f":"SUM(K55:K57)","v":2.2370399999999995},{"$f":"SUM(L55:L57)","v":35.046959999999999},null,{"$f":"SUM(N55:N57)","v":4.6533887999999992},{"$f":"SUM(O55:O57)","v":72.903091199999977},null,{"$f":"SUM(Q55:Q57)","v":4.8022056959999997},{"$f":"SUM(R55:R57)","v":75.234555903999961}]
[]
["Tax Rate  (to be entered)"]
[]
["Income Taxes Payable",null,null,null,{"$f":"E58*E60","v":0},{"$f":"F58*F60","v":0},null,{"$f":"H58*H60","v":0},{"$f":"I58*I60","v":0},null,{"$f":"K58*K60","v":0},{"$f":"L58*L60","v":0},null,{"$f":"N58*N60","v":0},{"$f":"O58*O60","v":0},null,{"$f":"Q58*Q60","v":0},{"$f":"R58*R60","v":0}]
["Gross Up"]
["Income Taxes Payable",null,null,null,{"$f":"E62/(1-E60)","v":0},{"$f":"F62/(1-F60)","v":0},null,{"$f":"H62/(1-H60)","v":0},{"$f":"I62/(1-I60)","v":0},null,{"$f":"K62/(1-K60)","v":0},{"$f":"L62/(1-L60)","v":0},null,{"$f":"N62/(1-N60)","v":0},{"$f":"O62/(1-O60)","v":0},null,{"$f":"Q62/(1-Q60)","v":0},{"$f":"R62/(1-R60)","v":0}]
["Grossed Up PILs",null,null,null,{"$f":"SUM(E64:E64)","v":0},{"$f":"SUM(F64:F64)","v":0},null,{"$f":"SUM(H64:H64)","v":0},{"$f":"SUM(I64:I64)","v":0},null,{"$f":"SUM(K64:K64)","v":0},{"$f":"SUM(L64:L64)","v":0},null,{"$f":"SUM(N64:N64)","v":0},{"$f":"SUM(O64:O64)","v":0},null,{"$f":"SUM(Q64:Q64)","v":0},{"$f":"SUM(R64:R64)","v":0}]
[]
[]
[null,null,null,2015,{"$f":"D68+1","v":2016},{"$f":"E68+1","v":2017},2018,2019]
["Net Fixed Assets"]
[null,"Enter applicable amortization in years:",25]
["Opening Gross Fixed Assets",null,null,null,{"$f":"D73","v":1000},{"$f":"E73","v":1000},{"$f":"F73","v":2000},{"$f":"G73","v":2000}]
["Gross Capital Additions",null,null,{"$f":"'App.2-FA Proposed REG Inves (2'!C53","v":1000},{"$f":"'App.2-FA Proposed REG Inves (2'!D53","v":0},{"$f":"'App.2-FA Proposed REG Inves (2'!E53","v":1000},{"$f":"'App.2-FA Proposed REG Inves (2'!F53","v":0},{"$f":"'App.2-FA Proposed REG Inves (2'!G53","v":0}]
["Closing Gross Fixed Assets",null,null,{"$f":"SUM(D71:D72)","v":1000},{"$f":"SUM(E71:E72)","v":1000},2000,2000,2000]
[]
["Opening Accumulated Amortization",null,null,null,{"$f":"D78","v":20},{"$f":"E78","v":60},{"$f":"F78","v":120},{"$f":"G78","v":200}]
["Current Year Amortization (before additions)",null,null,null,{"$f":"IF(ISERROR(E71/$C$70), 0, E71/$C$70)","v":40},{"$f":"IF(ISERROR(F71/$C$70), 0, F71/$C$70)","v":40},{"$f":"IF(ISERROR(G71/$C$70), 0, G71/$C$70)","v":80},{"$f":"IF(ISERROR(H71/$C$70), 0, H71/$C$70)","v":80}]
["Additions (half year)",null,null,{"$f":"D72/C70/2","v":20},{"$f":"E72/C70/2","v":0},{"$f":"F72/C70/2","v":20},{"$f":"G72/C70/2","v":0},{"$f":"H72/C70/2","v":0}]
["Closing Accumulated Amortization",null,null,{"$f":"SUM(D75+D77)","v":20},{"$f":"SUM(E75:E77)","v":60},{"$f":"SUM(F75:F77)","v":120},{"$f":"SUM(G75:G77)","v":200},{"$f":"SUM(H75:H77)","v":280}]
[]
["Opening Net Fixed Assets",null,null,{"$f":"D71-D75","v":0},{"$f":"D81","v":980},{"$f":"E81","v":940},{"$f":"F81","v":1880},{"$f":"G81","v":1800}]
["Closing Net Fixed Assets",null,null,{"$f":"D73-D78","v":980},{"$f":"E73-E78","v":940},{"$f":"F73-F78","v":1880},{"$f":"G73-G78","v":1800},{"$f":"H73-H78","v":1720}]
["Average Net Fixed Assets",null,null,{"$f":"SUM(D80:D81)/2","v":490},{"$f":"SUM(E80:E81)/2","v":960},{"$f":"SUM(F80:F81)/2","v":1410},{"$f":"SUM(G80:G81)/2","v":1840},{"$f":"SUM(H80:H81)/2","v":1760}]
[]
["UCC for PILs Calculation"]
[null,null,null,2015,{"$f":"D85+1","v":2016},{"$f":"E85+1","v":2017},2018,2019]
[]
["Opening UCC",null,null,null,{"$f":"D95","v":960},{"$f":"E95","v":883.2},{"$f":"F95","v":812.5440000000001},{"$f":"G95","v":747.54048000000012}]
["Capital Additions (from Appendix 2-FA)",null,null,{"$f":"D72","v":1000},{"$f":"'App.2-FA Proposed REG Inves (2'!D31","v":0},{"$f":"'App.2-FA Proposed REG Inves (2'!E31","v":0},{"$f":"'App.2-FA Proposed REG Inves (2'!F31","v":0},{"$f":"'App.2-FA Proposed REG Inves (2'!G31","v":0}]
["UCC Before Half Year Rule",null,null,{"$f":"SUM(D87:D88)","v":1000},{"$f":"SUM(E87:E88)","v":960},{"$f":"SUM(F87:F88)","v":883.2},{"$f":"SUM(G87:G88)","v":812.5440000000001},{"$f":"SUM(H87:H88)","v":747.54048000000012}]
["Half Year Rule (1/2 Additions - Disposals)",null,null,{"$f":"D88/2","v":500},{"$f":"E88/2","v":0},{"$f":"F88/2","v":0},{"$f":"G88/2","v":0},{"$f":"H88/2","v":0}]
["Reduced UCC",null,null,{"$f":"D89-D90","v":500},{"$f":"E89-E90","v":960},{"$f":"F89-F90","v":883.2},{"$f":"G89-G90","v":812.5440000000001},{"$f":"H89-H90","v":747.54048000000012}]
["CCA Rate Class (to be entered)",null,47,{"$f":"C92","v":47},{"$f":"C92","v":47},{"$f":"C92","v":47},{"$f":"C92","v":47},{"$f":"C92","v":47}]
["CCA Rate  (to be entered)",null,0.08,{"$f":"C93","v":0.08},{"$f":"C93","v":0.08},{"$f":"C93","v":0.08},{"$f":"C93","v":0.08},{"$f":"C93","v":0.08}]
["CCA",null,null,{"$f":"D91*D93","v":40},{"$f":"E91*E93","v":76.8},70.656000000000006,65.003520000000009,{"$f":"H91*H93","v":59.803238400000012}]
["Closing UCC",null,null,{"$f":"D89-D94","v":960},{"$f":"E89-E94","v":883.2},{"$f":"F89-F94","v":812.5440000000001},{"$f":"G89-G94","v":747.54048000000012},{"$f":"H89-H94","v":687.73724160000006}]

{"sheet":"App.2-FC Calc of REG Expans (2","index":3,"n_rows":94,"n_cols":18,"rows_kept":94,"cut":false,"hidden":true,"merged":[[51,16,51,17],[16,6,16,8],[16,9,16,11],[16,12,16,14],[16,15,16,17],[46,0,46,11],[48,0,48,12],[16,3,16,5],[49,0,49,1],[51,4,51,5],[51,7,51,8],[51,10,51,11],[51,13,51,14],[8,0,8,5],[9,0,9,5],[11,0,11,5],[12,0,12,5],[13,0,13,5]]}
[null,null,null,null,"File Number:",{"$f":"EBNUMBER","v":{"$error":"#REF!"}}]
[null,null,null,null,"Exhibit:"]
[null,null,null,null,"Tab:"]
[null,null,null,null,"Schedule:"]
[null,null,null,null,"Page:"]
[]
[null,null,null,null,"Date:"]
[]
["Appendix 2-FC"]
["Calculation of Renewable Generation Connection Direct Benefits/Provincial Amount: Renewable Expansion Investments"]
[]
["This table will calculate the distributor/provincial shares of the investments entered in Part B of Appendix 2-FA."]
["Enter values in green shaded cells: WCA percentage, debt percentages, interest rates, kWh, tax rates, amortization period, CCA Class and percentage."]
["Rate Riders are not calculated for Test Year as these assets and costs are already in the distributors rate base."]
[]
[]
[null,null,null,"2014 Test Year",null,null,2015,null,null,2016,2016,null,2017,null,null,2018]
[null,null,null,null,"Direct Benefit","Provincial",null,"Direct Benefit","Provincial",null,"Direct Benefit","Provincial",null,"Direct Benefit","Provincial",null,"Direct Benefit","Provincial"]
[null,null,null,"Total",0.17,0.83,"Total",0.17,0.83,"Total",0.17,0.83,"Total",0.17,0.83,"Total",0.17,0.83]
["Net Fixed Assets (average)",null,null,{"$f":"D81","v":0},{"$f":"D20*E19","v":0},{"$f":"D20*F19","v":0},{"$f":"E81","v":0},{"$f":"G20*H19","v":0},{"$f":"G20*I19","v":0},{"$f":"F81","v":0},{"$f":"J20*K19","v":0},{"$f":"J20*L19","v":0},{"$f":"G81","v":0},{"$f":"M20*N19","v":0},{"$f":"M20*O19","v":0},{"$f":"H81","v":0},{"$f":"P20*Q19","v":0},{"$f":"P20*R19","v":0}]
["Incremental OM&A (on-going, N/A for Provincial Recovery)",null,null,{"$f":"'App.2-FA Proposed REG Inves (2'!C$92","v":0},{"$f":"D21","v":0},null,{"$f":"'App.2-FA Proposed REG Inves (2'!D$92","v":0},{"$f":"G21","v":0},null,{"$f":"'App.2-FA Proposed REG Inves (2'!E$92","v":0},{"$f":"J21","v":0},null,{"$f":"'App.2-FA Proposed REG Inves (2'!F$92","v":0},{"$f":"M21","v":0},null,{"$f":"'App.2-FA Proposed REG Inves (2'!G$92","v":0},{"$f":"P21","v":0}]
["Incremental OM&A (start-up, applicable for Provincial Recovery)",null,null,{"$f":"'App.2-FA Proposed REG Inves (2'!C$91","v":0},{"$f":"D22*E19","v":0},{"$f":"D22*F19","v":0},{"$f":"'App.2-FA Proposed REG Inves (2'!D$91","v":0},{"$f":"G22*H19","v":0},{"$f":"G22*I19","v":0},{"$f":"'App.2-FA Proposed REG Inves (2'!E$91","v":0},{"$f":"J22*K19","v":0},{"$f":"J22*L19","v":0},{"$f":"'App.2-FA Proposed REG Inves (2'!F$91","v":0},{"$f":"M22*N19","v":0},{"$f":"M22*O19","v":0},{"$f":"'App.2-FA Proposed REG Inves (2'!G$91","v":0},{"$f":"P22*Q19","v":0},{"$f":"P22*R19","v":0}]
["WCA",null,null,null,{"$f":"(E21+E22)*$B$23","v":0},{"$f":"F22*$B$23","v":0},null,{"$f":"(H21+H22)*$B$23","v":0},{"$f":"I22*$B$23","v":0},null,{"$f":"(K21+K22)*$B$23","v":0},{"$f":"L22*$B$23","v":0},null,{"$f":"(N21+N22)*$B$23","v":0},{"$f":"O22*$B$23","v":0},null,{"$f":"(Q21+Q22)*$B$23","v":0},{"$f":"R22*$B$23","v":0}]
["Rate Base",null,null,null,{"$f":"SUM(E20+E23)","v":0},{"$f":"SUM(F20+F23)","v":0},null,{"$f":"SUM(H20+H23)","v":0},{"$f":"SUM(I20+I23)","v":0},null,{"$f":"SUM(K20+K23)","v":0},{"$f":"SUM(L20+L23)","v":0},null,{"$f":"SUM(N20+N23)","v":0},{"$f":"SUM(O20+O23)","v":0},null,{"$f":"SUM(Q20+Q23)","v":0},{"$f":"SUM(R20+R23)","v":0}]
[]
[]
["Deemed ST Debt",null,null,null,{"$f":"E24*$B$27","v":0},{"$f":"F24*$B$27","v":0},null,{"$f":"H24*$B$27","v":0},{"$f":"I24*$B$27","v":0},null,{"$f":"K24*$B$27","v":0},{"$f":"L24*$B$27","v":0},null,{"$f":"N24*$B$27","v":0},{"$f":"O24*$B$27","v":0},null,{"$f":"Q24*$B$27","v":0},{"$f":"R24*$B$27","v":0}]
["Deemed LT Debt",null,null,null,{"$f":"E24*$B$28","v":0},{"$f":"F24*$B$28","v":0},null,{"$f":"H24*$B$28","v":0},{"$f":"I24*$B$28","v":0},null,{"$f":"K24*$B$28","v":0},{"$f":"L24*$B$28","v":0},null,{"$f":"N24*$B$28","v":0},{"$f":"O24*$B$28","v":0},null,{"$f":"Q24*$B$28","v":0},{"$f":"R24*$B$28","v":0}]
["Deemed Equity",null,null,null,{"$f":"E24*$B$29","v":0},{"$f":"F24*$B$29","v":0},null,{"$f":"H24*$B$29","v":0},{"$f":"I24*$B$29","v":0},null,{"$f":"K24*$B$29","v":0},{"$f":"L24*$B$29","v":0},null,{"$f":"N24*$B$29","v":0},{"$f":"O24*$B$29","v":0},null,{"$f":"Q24*$B$29","v":0},{"$f":"R24*$B$29","v":0}]
[]
["ST Interest",null,null,null,{"$f":"E27*$B$31","v":0},{"$f":"F27*$B$31","v":0},null,{"$f":"H27*$B$31","v":0},{"$f":"I27*$B$31","v":0},null,{"$f":"K27*$B$31","v":0},{"$f":"L27*$B$31","v":0},null,{"$f":"N27*$B$31","v":0},{"$f":"O27*$B$31","v":0},null,{"$f":"Q27*$B$31","v":0},{"$f":"R27*$B$31","v":0}]
["LT Interest",null,null,null,{"$f":"E28*$B$32","v":0},{"$f":"F28*$B$32","v":0},null,{"$f":"H28*$B$32","v":0},{"$f":"I28*$B$32","v":0},null,{"$f":"K28*$B$32","v":0},{"$f":"L28*$B$32","v":0},null,{"$f":"N28*$B$32","v":0},{"$f":"O28*$B$32","v":0},null,{"$f":"Q28*$B$32","v":0},{"$f":"R28*$B$32","v":0}]
["ROE",null,null,null,{"$f":"E29*$B$33","v":0},{"$f":"F29*$B$33","v":0},null,{"$f":"H29*$B$33","v":0},{"$f":"I29*$B$33","v":0},null,{"$f":"K29*$B$33","v":0},{"$f":"L29*$B$33","v":0},null,{"$f":"N29*$B$33","v":0},{"$f":"O29*$B$33","v":0},null,{"$f":"Q29*$B$33","v":0},{"$f":"R29*$B$33","v":0}]
["Cost of Capital Total",null,null,null,{"$f":"SUM(E31:E33)","v":0},{"$f":"SUM(F31:F33)","v":0},null,{"$f":"SUM(H31:H33)","v":0},{"$f":"SUM(I31:I33)","v":0},null,{"$f":"SUM(K31:K33)","v":0},{"$f":"SUM(L31:L33)","v":0},null,{"$f":"SUM(N31:N33)","v":0},{"$f":"SUM(O31:O33)","v":0},null,{"$f":"SUM(Q31:Q33)","v":0},{"$f":"SUM(R31:R33)","v":0}]
[]
["OM&A",null,null,null,{"$f":"E21+E22","v":0},{"$f":"F22","v":0},null,{"$f":"H21+H22","v":0},{"$f":"I22","v":0},null,{"$f":"K21+K22","v":0},{"$f":"L22","v":0},null,{"$f":"N21+N22","v":0},{"$f":"O22","v":0},null,{"$f":"Q21+Q22","v":0},{"$f":"R22","v":0}]
["Amortization",null,null,{"$f":"D77","v":0},{"$f":"D37*E$19","v":0},{"$f":"D37*F$19","v":0},{"$f":"E75+E76","v":0},{"$f":"G37*H$19","v":0},{"$f":"G37*I$19","v":0},{"$f":"F75+F76","v":0},{"$f":"J37*K$19","v":0},{"$f":"J37*L$19","v":0},{"$f":"G75+G76","v":0},{"$f":"M37*N$19","v":0},{"$f":"M37*O$19","v":0},{"$f":"H75+H76","v":0},{"$f":"P37*Q$19","v":0},{"$f":"P37*R$19","v":0}]
["Grossed-up PILs",null,null,null,{"$f":"E65","v":0},{"$f":"F65","v":0},null,{"$f":"H65","v":0},{"$f":"I65","v":0},null,{"$f":"K65","v":0},{"$f":"L65","v":0},null,{"$f":"N65","v":0},{"$f":"O65","v":0},null,{"$f":"Q65","v":0},{"$f":"R65","v":0}]
[]
["Revenue Requirement",null,null,null,{"$f":"SUM(E34:E38)","v":0},{"$f":"SUM(F34:F38)","v":0},null,{"$f":"SUM(H34:H38)","v":0},{"$f":"SUM(I34:I38)","v":0},null,{"$f":"SUM(K34:K38)","v":0},{"$f":"SUM(L34:L38)","v":0},null,{"$f":"SUM(N34:N38)","v":0},{"$f":"SUM(O34:O38)","v":0},null,{"$f":"SUM(Q34:Q38)","v":0},{"$f":"SUM(R34:R38)","v":0}]
[]
[]
["Provincial Rate Protection",null,null,null,null,{"$f":"F40","v":0},null,null,{"$f":"I40","v":0},null,null,{"$f":"L40","v":0},null,null,{"$f":"O40","v":0},null,null,{"$f":"R40","v":0}]
[]
["Monthly Amount Paid by IESO",null,null,null,null,{"$f":"F43/12","v":0},null,null,{"$f":"I43/12","v":0},null,null,{"$f":"L43/12","v":0},null,null,{"$f":"O43/12","v":0},null,null,{"$f":"R43/12","v":0}]
[]
["Note 1: The difference between the actual costs of approved eligible investments and revenue received from the IESO should be recorded in a variance account.  The Board may provide "]
["regulatory accounting guidance regarding a variance account either in an individual proceeding or on a generic basis."]
["Note 2: For the 2014 Test Year, Costs and Revenues of the Direct Benefit are to be included in the test year applicant Rate Base and Revenues."]
[]
["PILs Calculation"]
[null,null,null,null,2014,null,null,2015,null,null,2016,null,null,2017,null,null,2018]
["Income Tax",null,null,null,"Direct Benefit","Provincial",null,"Direct Benefit","Provincial",null,"Direct Benefit","Provincial",null,"Direct Benefit","Provincial",null,"Direct Benefit","Provincial"]
[null,null,null,null,null,null,null,null,null,null,null,null,"Total",null,null,"Total"]
["Net Income - ROE on Rate Base",null,null,null,{"$f":"E33","v":0},{"$f":"F33","v":0},null,{"$f":"H33","v":0},{"$f":"I33","v":0},null,{"$f":"K33","v":0},{"$f":"L33","v":0},null,{"$f":"N33","v":0},{"$f":"O33","v":0},null,{"$f":"Q33","v":0},{"$f":"R33","v":0}]
["Amortization (17% DB and 83% P)",null,null,null,{"$f":"E37","v":0},{"$f":"F37","v":0},null,{"$f":"H37","v":0},{"$f":"I37","v":0},null,{"$f":"K37","v":0},{"$f":"L37","v":0},null,{"$f":"N37","v":0},{"$f":"O37","v":0},null,{"$f":"Q37","v":0},{"$f":"R37","v":0}]
["CCA (17% DB and 83% P)",null,null,null,{"$f":"-D93*E$19","v":0},{"$f":"-D93*F$19","v":0},null,{"$f":"-E93*H$19","v":0},{"$f":"-E93*I$19","v":0},null,{"$f":"-F93*K$19","v":0},{"$f":"-F93*L$19","v":0},null,{"$f":"-G93*N$19","v":0},{"$f":"-G93*O$19","v":0},null,{"$f":"-H93*Q$19","v":0},{"$f":"-H93*R$19","v":0}]
["Taxable income",null,null,null,{"$f":"SUM(E55:E57)","v":0},{"$f":"SUM(F55:F57)","v":0},null,{"$f":"SUM(H55:H57)","v":0},{"$f":"SUM(I55:I57)","v":0},null,{"$f":"SUM(K55:K57)","v":0},{"$f":"SUM(L55:L57)","v":0},null,{"$f":"SUM(N55:N57)","v":0},{"$f":"SUM(O55:O57)","v":0},null,{"$f":"SUM(Q55:Q57)","v":0},{"$f":"SUM(R55:R57)","v":0}]
[]
["Tax Rate  (to be entered)"]
[]
["Income Taxes Payable",null,null,null,{"$f":"E58*E60","v":0},{"$f":"F58*F60","v":0},null,{"$f":"H58*H60","v":0},{"$f":"I58*I60","v":0},null,{"$f":"K58*K60","v":0},{"$f":"L58*L60","v":0},null,{"$f":"N58*N60","v":0},{"$f":"O58*O60","v":0},null,{"$f":"Q58*Q60","v":0},{"$f":"R58*R60","v":0}]
["Gross Up"]
["Income Taxes Payable",null,null,null,{"$f":"E62/(1-E60)","v":0},{"$f":"F62/(1-F60)","v":0},null,{"$f":"H62/(1-H60)","v":0},{"$f":"I62/(1-I60)","v":0},null,{"$f":"K62/(1-K60)","v":0},{"$f":"L62/(1-L60)","v":0},null,{"$f":"N62/(1-N60)","v":0},{"$f":"O62/(1-O60)","v":0},null,{"$f":"Q62/(1-Q60)","v":0},{"$f":"R62/(1-R60)","v":0}]
["Grossed Up PILs",null,null,null,{"$f":"SUM(E64:E64)","v":0},{"$f":"SUM(F64:F64)","v":0},null,{"$f":"SUM(H64:H64)","v":0},{"$f":"SUM(I64:I64)","v":0},null,{"$f":"SUM(K64:K64)","v":0},{"$f":"SUM(L64:L64)","v":0},null,{"$f":"SUM(N64:N64)","v":0},{"$f":"SUM(O64:O64)","v":0},null,{"$f":"SUM(Q64:Q64)","v":0},{"$f":"SUM(R64:R64)","v":0}]
[]
[]
["Net Fixed Assets",null,null,2014,2015,2016,2017,2018]
[null,"Enter applicable amortization in years:",25]
["Opening Gross Fixed Assets",null,null,null,{"$f":"D72","v":0},{"$f":"E72","v":0},{"$f":"F72","v":0},{"$f":"G72","v":0}]
["Gross Capital Additions",null,null,{"$f":"'App.2-FA Proposed REG Inves (2'!C90","v":0},{"$f":"'App.2-FA Proposed REG Inves (2'!D90","v":0},{"$f":"'App.2-FA Proposed REG Inves (2'!E90","v":0},{"$f":"'App.2-FA Proposed REG Inves (2'!F90","v":0},{"$f":"'App.2-FA Proposed REG Inves (2'!G90","v":0}]
["Closing Gross Fixed Assets",null,null,{"$f":"SUM(D70:D71)","v":0},{"$f":"SUM(E70:E71)","v":0},{"$f":"SUM(F70:F71)","v":0},{"$f":"SUM(G70:G71)","v":0},{"$f":"SUM(H70:H71)","v":0}]
[]
["Opening Accumulated Amortization",null,null,null,{"$f":"D77","v":0},{"$f":"E77","v":0},{"$f":"F77","v":0},{"$f":"G77","v":0}]
["Current Year Amortization (before additions)",null,null,null,{"$f":"E70/$C$69","v":0},{"$f":"F70/$C$69","v":0},{"$f":"G70/$C$69","v":0},{"$f":"H70/$C$69","v":0}]
["Additions (half year)",null,null,{"$f":"D71/C69/2","v":0},{"$f":"E71/C69/2","v":0},{"$f":"F71/C69/2","v":0},{"$f":"G71/C69/2","v":0},{"$f":"H71/C69/2","v":0}]
["Closing Accumulated Amortization",null,null,{"$f":"SUM(D74+D76)","v":0},{"$f":"SUM(E74:E76)","v":0},{"$f":"SUM(F74:F76)","v":0},{"$f":"SUM(G74:G76)","v":0},{"$f":"SUM(H74:H76)","v":0}]
[]
["Opening Net Fixed Assets",null,null,{"$f":"D70-D74","v":0},{"$f":"D80","v":0},{"$f":"E80","v":0},{"$f":"F80","v":0},{"$f":"G80","v":0}]
["Closing Net Fixed Assets",null,null,{"$f":"D72-D77","v":0},{"$f":"E72-E77","v":0},{"$f":"F72-F77","v":0},{"$f":"G72-G77","v":0},{"$f":"H72-H77","v":0}]
["Average Net Fixed Assets",null,null,{"$f":"SUM(D79:D80)/2","v":0},{"$f":"SUM(E79:E80)/2","v":0},{"$f":"SUM(F79:F80)/2","v":0},{"$f":"SUM(G79:G80)/2","v":0},{"$f":"SUM(H79:H80)/2","v":0}]
[]
["UCC for PILs Calculation"]
[null,null,null,2014,2015,2016,2017,2018]
[]
["Opening UCC",null,null,null,{"$f":"D94","v":0},{"$f":"E94","v":0},{"$f":"F94","v":0},{"$f":"G94","v":0}]
["Capital Additions (from Appendix 2-FA)",null,null,{"$f":"D71","v":0},{"$f":"E71","v":0},{"$f":"F71","v":0},{"$f":"G71","v":0},{"$f":"H71","v":0}]
["UCC Before Half Year Rule",null,null,{"$f":"SUM(D86:D87)","v":0},{"$f":"SUM(E86:E87)","v":0},{"$f":"SUM(F86:F87)","v":0},{"$f":"SUM(G86:G87)","v":0},{"$f":"SUM(H86:H87)","v":0}]
["Half Year Rule (1/2 Additions - Disposals)",null,null,{"$f":"D87/2","v":0},{"$f":"E87/2","v":0},{"$f":"F87/2","v":0},{"$f":"G87/2","v":0},{"$f":"H87/2","v":0}]
["Reduced UCC",null,null,{"$f":"D88-D89","v":0},{"$f":"E88-E89","v":0},{"$f":"F88-F89","v":0},{"$f":"G88-G89","v":0},{"$f":"H88-H89","v":0}]
["CCA Rate Class (to be entered)",null,47,{"$f":"C91","v":47},{"$f":"C91","v":47},{"$f":"C91","v":47},{"$f":"C91","v":47},{"$f":"C91","v":47}]
["CCA Rate  (to be entered)",null,0.08,{"$f":"C92","v":0.08},{"$f":"C92","v":0.08},{"$f":"C92","v":0.08},{"$f":"C92","v":0.08},{"$f":"C92","v":0.08}]
["CCA",null,null,{"$f":"D90*D$92","v":0},{"$f":"E90*E$92","v":0},0,0,0]
["Closing UCC",null,null,{"$f":"D88-D93","v":0},{"$f":"E88-E93","v":0},{"$f":"F88-F93","v":0},{"$f":"G88-G93","v":0},{"$f":"H88-H93","v":0}]

{"sheet":"App.2-I LF_CDM_WF_OLD","index":4,"n_rows":77,"n_cols":12,"rows_kept":77,"cut":false,"hidden":true,"merged":[[69,1,69,5],[76,0,76,5],[13,0,13,5],[38,0,38,5],[43,0,43,1],[47,0,47,1],[19,0,19,5],[20,0,20,5],[27,0,27,5],[62,0,62,5],[64,0,64,5],[66,0,66,5],[35,0,35,5],[52,0,52,5],[49,0,49,5],[50,0,50,5],[9,0,9,5],[8,0,8,5],[15,0,15,5],[17,0,17,5],[58,0,58,5],[36,0,36,5],[40,0,40,4]]}
[null,null,null,null,"File Number:",{"$f":"EBNUMBER","v":{"$error":"#REF!"}},null,{"$f":"#REF!","v":{"$error":"#REF!"}}]
[null,null,null,null,"Exhibit:"]
[null,null,null,null,"Tab:"]
[null,null,null,null,"Schedule:"]
[null,null,null,null,"Page:"]
[]
[null,null,null,null,"Date:"]
[]
["Appendix 2-I"]
["Load Forecast CDM Adjustment Work Form (2015)"]
[]
["Input the 2011-2014 CDM target in Cell B21."]
[]
["Input the measured results for 2011 CDM programs for each of the years 2011 and persistence into 2012, 2013 and 2014 into cells B29 to E29.  These results are taken from the final 2011 CDM Report issued by the OPA for that distributor in the fall of 2012."]
[]
["Measured results for 2012 CDM programs for each of the years 2012 and persistence into 2013 and 2014 are input into cells C30 to E30.  These results are taken from the final 2012 CDM Report issued by the OPA for that distributor in the fall of 2013.  Until that report is issued, the distributor should use the results from the preliminary 2012 CDM Report issued in the spring of 2013."]
[]
["\tBased on these inputs, the residual kWh to achieve the 4 year CDM target is allocated so that there is an equal incremental increase in each of the years 2012, 2013 and 2014.\r\n"]
[]
["4 Year (2011-2014) kWh Target:"]
[100000]
[null,2011,2012,2013,2014,"Total",null,null,{"$f":"B22","v":2011},{"$f":"C22","v":2012},{"$f":"D22","v":2013},{"$f":"E22","v":2014}]
["2011 CDM Programs",{"$f":"B29/$F$33","v":0.1},{"$f":"C29/$F$33","v":0.1},0.1,9.5000000000000001E-2,{"$f":"SUM(B23:E23)","v":0.39500000000000002},null,{"$f":"A23","v":"2011 CDM Programs"},{"$f":"50%","v":0.5},1,1,1]
["2012 CDM Programs",null,0.12,0.1195,0.11,{"$f":"SUM(B24:E24)","v":0.34949999999999998},null,{"$f":"A24","v":"2012 CDM Programs"},null,0.5,1,1]
["2013 CDM Programs",null,null,8.5166666666666654E-2,8.5166666666666654E-2,0.17033333333333331,null,{"$f":"A25","v":"2013 CDM Programs"},null,null,0.5,1]
["2014 CDM Programs",null,null,null,8.5166666666666654E-2,8.5166666666666654E-2,null,{"$f":"A26","v":"2014 CDM Programs"},null,null,null,0.5]
["Total in Year",{"$f":"SUM(B23:B26)","v":0.1},{"$f":"SUM(C23:C26)","v":0.22},0.30466666666666664,0.37533333333333335,{"$f":"SUM(B27:E27)","v":1}]
["kWh"]
["2011 CDM Programs",10000,10000,10000,9500,{"$f":"SUM(B29:E29)","v":39500}]
["2012 CDM Programs",null,12000,11950,11000,{"$f":"SUM(B30:E30)","v":34950}]
["2013 CDM Programs",null,null,{"$f":"(A21-SUM(F29:F30))/3","v":8516.6666666666661},{"$f":"D31","v":8516.6666666666661},17033.333333333332]
["2014 CDM Programs",null,null,null,{"$f":"D31","v":8516.6666666666661},8516.6666666666661]
["Total in Year",{"$f":"SUM(B29:B32)","v":10000},{"$f":"SUM(C29:C32)","v":22000},30466.666666666664,37533.333333333328,{"$f":"A21","v":100000}]
[]
[null,null,null,null,"Check",{"$f":"SUM(F29:F32)","v":100000}]
["From each of the 2006-2010 CDM Final Report, 2011 CDM Final Report, and the 2012 CDM Final Report, issued by the OPA for the distributor, the distributor should input the \"gross\" and \"net\" results of the cumulative CDM savings for 2014 into cells D31 to E33.  The model will calculate the cumulative savings for all programs from 2006 to 2012 and determine the \"net\" to \"gross\" factor \"g\"."]
["The Board has determined that the \"net\" number should be used in its Decision and Order with respect to Centre Wellington Hydro Ltd.'s 2013 Cost of Service rates (EB-2012-0113).  This approach has also been used in Settlement Agreements accepted by the Board in other 2013 applications.  The distributor should select whether the adjustment is done on a \"net\" or \"gross\" basis, but must support a proposal for the adjustment being done on a \"gross\" basis."]
[]
["Net-to-Gross Conversion"]
[]
["Is CDM adjustment being done on a \"net\" or \"gross\" basis?",null,null,null,null,"net"]
[]
[null,null,"\"Gross\"","\"Net\"","Difference","\"Net-to-Gross\" Conversion Factor"]
["Persistence of Historical CDM programs to 2014",null,"kWh","kWh","kWh","('g')"]
["2006-2010 CDM programs"]
["2011 CDM program"]
["2012 CDM program"]
["2006 to 2011 OPA CDM programs:  Persistence to 2014",null,{"$f":"SUM(C45:C47)","v":0},{"$f":"SUM(D45:D47)","v":0},{"$f":"C48-D48","v":0},{"$f":"IF(D48=0,0,IF(F41=\"net\",0,E48/D48))","v":0}]
[]
["The default values represent the factor that each year's CDM program is factored into the manual CDM adjustment.  Distributors can choose alternative weights of \"0\", \"0.5\" or \"1\" from the drop-down menu for each cell, but must support its alternatives."]
["These factors do not mean that CDM programs are excluded, but also reflect the assumption that impacts of 2011 and 2012 programs are already implicitly reflected in the actual data for those years that are the basis for the load forecast prior to any manual CDM adjustment."]
[]
["Weight Factor for Inclusion in CDM Adjustment to 2014 Load Forecast"]
[null,2011,2012,2013,2014]
["Weight Factor for each year's CDM program impact on 2014 load forecast",0,0,1,0.5,"Utility can select \"0\", \"0.5\", or \"1\" from drop-down list"]
["Default Value selection rationale.  ","Persistence of 2011 CDM programs for the full year of 2012 means that all of 2011 CDM impact is assumed to be in the base forecast before the CDM Adjustment","50% of 2012 CDM impact is assumed reflected in base forecast based on 1/2 year rule.","Full year impact of 2013 CDM programs on adjustment for 2014 load forecast","Only 50% of 2014 CDM impact is used based on a half year rule"]
[]
[]
["The Amount used for the CDM threshold of the LRAMVA is the kWh that will be used to determine the base amount for the LRAMVA balance for 2014, for assessing performance against the four-year target.  The base amount for 2011-2013 is 0 (zero) for 2014 Cost of Service applications, as the utility rebased prior to the 2011-2014 CDM programs, and there was no adjustment to reflect the impacts of the 2011-2014 programs on the load forecast used to determine their last cost of service-based rates."]
[]
["The proposed loss factor should correspond with the loss factor calculated in Appendix 2-R "]
[]
["The Manual Adjustment for the 2014 Load Forecast is the amount manually subtracted from the load forecast derived from the base forecast from historical data, and is intended to reflect the further CDM savings that the distributor needs to achieve assuming that they meet 100% of the 2011-2014 CDM target that is a condition of their target. "]
[]
["If the distributor has developed their load forecast on a system purchased basis, then the manual adjustment should be on system purchased basis, including the adjustment for losses.  If the load forecast has been developed on a billed basis, either on a system basis or on a class-specific basis, the manual adjustment should be on a billed basis, excluding losses."]
[]
["The distributor should determine the allocation of the savings to all customer classes in a reasonable manner, for both the LRAMVA and for the load forecast adjustment."]
[]
[null,2011,2012,2013,2014,"Total for 2014"]
[null,"kWh"]
["Amount used for CDM threshold for LRAMVA (2014)",{"$f":"E29","v":9500},{"$f":"E30","v":11000},{"$f":"E31","v":8516.6666666666661},{"$f":"E32","v":8516.6666666666661},{"$f":"SUM(B71:E71)","v":37533.333333333328}]
[]
["Manual Adjustment for 2014 Load Forecast (billed basis)",{"$f":"B71*(1+F48)*B55","v":0},{"$f":"C71*(1+F48)*C55","v":0},{"$f":"D71*(1+F48)*D55","v":8516.6666666666661},{"$f":"E71*(1+F48)*E55","v":4258.333333333333},{"$f":"SUM(B73:E73)","v":12775}]
[]
["Proposed Loss Factor (TLF)",4.7899999999999998E-2," Format: X.XX%"]
["Manual Adjustment for 2014 Load Forecast (system purchased basis)",{"$f":"B73*(1+$B75)","v":0},{"$f":"C73*(1+$B75)","v":0},8924.6149999999998,4462.3074999999999,{"$f":"SUM(B76:E76)","v":13386.922500000001}]
["Manual adjustment uses \"gross\" versus \"net\" (i.e. numbers multiplied by (1 + g).  The Weight factor is also used calculate the impact of each year's program on the CDM adjustment to the 2014 load forecast."]

{"sheet":"lists","index":5,"n_rows":212,"n_cols":55,"rows_kept":212,"cut":false,"hidden":true,"merged":[[13,51,13,52],[14,51,14,52],[15,51,15,52],[16,51,16,52],[17,51,17,52],[12,51,12,52],[11,51,11,52],[0,51,0,52],[1,51,1,52],[2,51,2,52],[3,51,3,52],[4,51,4,52],[5,51,5,52],[6,51,6,52],[7,51,7,52],[8,51,8,52],[9,51,9,52],[10,51,10,52]]}
["DISTRIBUTED GENERATION [DGEN]","Embedded Distributor",{"$f":"COUNTA(B1:B17)","v":4},null,null,null,null,null,"A Standby Service Charge will be applied for a month where standby power is not provided. The applicable rate is the approved Distribution Volumetric Rate of the applicable service class and is applied to gross metered demand or contracted amount, whichever is greater. A monthly administration charge of $200, for simple metering arrangements, or $500, for complex metering arrangements, will also be applied.",null,null,"Loss Factors",null,"Units","Units1","Units2",null,null,null,null,null,null,null,null,null,"Account History","Account set up charge/change of occupancy charge (plus credit agency costs if applicable)","Total Loss Factor – Embedded Distributor – Hydro One Networks Inc.",null,null,null,null,null,null,null,null,null,"Algoma Power Inc.","Algoma Power Inc.",null,"DISTRIBUTED GENERATION [DGEN]","kW",null,null,null,"Sub-Total:  Delivery (Distribution and Retail Transmission)"]
["EMBEDDED DISTRIBUTOR","General Service 3,000 to 4,999 kW",null,null,null,null,null,null,"Distribution Volumetric Rate",null,null,"Total Loss Factor – Primary Metered Customer",null,"$","$/kWh","$",null,null,null,null,null,null,null,null,null,"Account set up charge/change of occupancy charge","Administrative Billing Charge","Total Loss Factor – Primary Metered Customer",null,null,null,null,null,null,null,null,null,"Atikokan Hydro Inc.","Atikokan Hydro Inc.",null,"EMBEDDED DISTRIBUTOR","kW",null,null,null,"Wholesale Market Service Rate ",null,null,{"$f":"AU2*AV2","v":0},{"$f":"AU2","v":0},0,{"$f":"AX2*AY2","v":0},null,{"$f":"AZ2-AW2","v":0},{"$f":"BB2/AW2","v":{"$error":"#DIV/0!"}}]
["EMBEDDED DISTRIBUTOR","General Service 1,000 to 4,999 kW",null,null,null,null,null,null,"Distribution Volumetric Rate - $/kW of contracted amount",null,null,"Total Loss Factor – Primary Metered Customer < 5,000 kW",null,"$/kWh","$/kW","%",null,null,null,null,null,null,"MSC",null,null,"Account set up charge/change of occupancy charge (plus credit agency costs if applicable – Residential)","Bell Canada Pole Rentals","Total Loss Factor – Primary Metered Customer < 5,000 kW",null,null,null,null,null,null,null,null,null,"Attawapiskat Power Corp. ","Attawapiskat Power Corp. ",null,"EMBEDDED DISTRIBUTOR","kW",null,null,null,"Rural Rate Protection Charge",null,null,{"$f":"AU3*AV3","v":0},0,0,{"$f":"AX3*AY3","v":0},null,{"$f":"AZ3-AW3","v":0},{"$f":"BB3/AW3","v":{"$error":"#DIV/0!"}}]
["FARMS - SINGLE PHASE ENERGY-BILLED [F1]","General Service Equal To Or Greater Than 1,500 kW - Interval Metered",null,null,null,null,null,null,"Distribution Wheeling Service Rate",null,null,"Total Loss Factor – Primary Metered Customer > 5,000 kW",null,"$/kW","$/kVA",null,null,null,null,null,null,null,"SM_Rate_Adder",null,null,"Account set up charge/change of occupancy charge (plus credit agency costs if applicable)","Clearance Pole Attachment charge $/pole/year","Total Loss Factor – Primary Metered Customer > 5,000 kW",null,null,null,null,null,null,null,null,null,"Bluewater Power Distribution Corporation","Bluewater Power Distribution Corporation",null,"FARMS - SINGLE PHASE ENERGY-BILLED [F1]","kWh",null,null,null,"Standard Supply Service – Administration Charge (if applicable)",null,null,{"$f":"AU4*AV4","v":0},0,0,{"$f":"AX4*AY4","v":0},null,{"$f":"AZ4-AW4","v":0},{"$f":"BB4/AW4","v":{"$error":"#DIV/0!"}}]
["FARMS - THREE PHASE ENERGY-BILLED [F3]",null,null,null,null,null,null,null,"Electricity Rate",null,null,"Total Loss Factor – Secondary Metered Customer",null,"$/kVA",null,null,null,null,null,null,null,null,"MSC_Rate_Rider_",null,null,"Arrears certificate","Collection of account charge – no disconnection","Total Loss Factor – Secondary Metered Customer",null,null,null,null,null,null,null,null,null,"Brant County Power Inc.","Brant County Power Inc.",null,"FARMS - THREE PHASE ENERGY-BILLED [F3]","kWh",null,null,null,"Sub-Total:  Regulatory",null,null,{"$f":"SUM(AW2:AW4)","v":0},null,null,{"$f":"SUM(AZ2:BA4)","v":0},null,{"$f":"AZ5-AW5","v":0},{"$f":"BB5/AW5","v":{"$error":"#DIV/0!"}}]
["GENERAL SERVICE - COMMERCIAL",null,null,null,null,null,null,null,"Electricity Rate - All Additional kWh",null,null,"Total Loss Factor – Secondary Metered Customer < 5,000 kW",null,null,null,null,null,null,null,null,null,null,"VC",null,null,"Arrears certificate (credit reference)","Collection of account charge – no disconnection – after regular hours","Total Loss Factor – Secondary Metered Customer < 5,000 kW",null,null,null,null,null,null,null,null,null,"Brantford Power Inc.","Brantford Power Inc.",null,"GENERAL SERVICE - COMMERCIAL","kW",null,null,null,"Debt Retirement Charge (DRC)",null,null,{"$f":"AU6*AV6","v":0},{"$f":"AU6","v":0},{"$f":"AV6","v":0},{"$f":"AX6*AY6","v":0},null,{"$f":"AZ6-AW6","v":0},{"$f":"BB6/AW6","v":{"$error":"#DIV/0!"}}]
["GENERAL SERVICE - INSTITUTIONAL",null,null,null,null,null,null,null,"Electricity Rate - First 250 kWh",null,null,null,null,null,null,null,null,null,null,null,null,null,null,null,null,null,null,null,null,null,null,null,null,null,null,null,null,"Burlington Hydro Inc.","Burlington Hydro Inc.",null,"GENERAL SERVICE - INSTITUTIONAL","kW"]
["GENERAL SERVICE 1,000 TO 2,999 KW",null,null,null,null,null,null,null,"Electricity Rate -All Additional kWh",null,null,"Total Loss Factor – Secondary Metered Customer > 5,000 kW",null,null,null,null,null,null,null,null,null,null,"VC_Rate_Rider_",null,null,"Charge to certify cheque","Collection of account charge – no disconnection - during regular business hours","Total Loss Factor – Secondary Metered Customer > 5,000 kW",null,null,null,null,null,null,null,null,null,"Cambridge and North Dumfries Hydro Inc.","Cambridge and North Dumfries Hydro Inc.",null,"GENERAL SERVICE 1,000 TO 2,999 KW","kW",null,null,null,"Total Bill on RPP (before taxes)",null,null,null,null,null,null,null,{"$f":"AZ8-AW8","v":0}]
["GENERAL SERVICE 1,000 TO 4,999 KW",null,null,null,null,null,null,null,"Electricity Rate First 1,000 kWh",null,null,"Distribution Loss Factor - Secondary Metered Customer < 5,000 kW",null,null,null,null,null,null,null,null,null,null,"VC_GA_Rate_Rider_kW_",null,null,"Collection of Account Charge – No Disconnection","Collection of account charge – no disconnection – during regular hours",null,null,null,null,null,null,null,null,null,null,"Canadian Niagara Power Inc.","Canadian Niagara Power Inc. - Eastern Ontario Power",null,"GENERAL SERVICE 1,000 TO 4,999 KW - INTERVAL METERS","kW",null,null,null,"HST",null,null,{"$f":"AV9*AW8","v":0},null,{"$f":"AV9","v":0},{"$f":"AY9*AZ8","v":0},null,{"$f":"AZ9-AW9","v":0},{"$f":"BB9/AW9","v":{"$error":"#DIV/0!"}}]
["GENERAL SERVICE 1,000 TO 4,999 KW - INTERVAL METERS",null,null,null,null,null,null,null,"Electricity Rate First 25,000 kWh",null,null,"Distribution Loss Factor - Secondary Metered Customer > 5,000 kW",null,null,null,null,null,null,null,null,null,null,"VC_LV_Rate",null,null,"Credit Card Convenience Charge","Collection/Disconnection/Load Limiter/Reconnection – if in Community",null,null,null,null,null,null,null,null,null,null,"Centre Wellington Hydro Ltd.","Canadian Niagara Power Inc. - Fort Erie",null,"GENERAL SERVICE 1,000 TO 4,999 KW (CO-GENERATION)","kW",null,null,null,"Total Bill (including HST)",null,null,{"$f":"AW9+AW8","v":0},null,null,{"$f":"AZ9+AZ8","v":0},null,{"$f":"AZ10-AW10","v":0},{"$f":"BB10/AW10","v":{"$error":"#DIV/0!"}}]
["GENERAL SERVICE 1,000 TO 4,999 KW (CO-GENERATION)",null,null,null,null,null,null,null,"Electricity Rate First 6,000 kWh",null,null,"Distribution Loss Factor - Primary Metered Customer < 5,000 kW",null,null,null,null,null,null,null,null,null,null,"RTSR_Network",null,null,"Credit check (plus credit agency costs)","Credit Card Convenience Charge",null,null,null,null,null,null,null,null,null,null,"Chapleau Public Utilities Corporation","Canadian Niagara Power Inc. - Port Colborne Hydro Inc.",null,"GENERAL SERVICE 1,000 TO 4,999 KW","kW",null,null,null,"Ontario Clean Energy Benefit (OCEB)",null,null,{"$f":"-0.1*AW10","v":0},null,{"$f":"AV11","v":0},{"$f":"-0.1*AZ10","v":0},null,{"$f":"AZ11-AW11","v":0},{"$f":"BB11/AW11","v":{"$error":"#DIV/0!"}}]
["GENERAL SERVICE 1,500 TO 4,999 KW",null,null,null,null,null,null,null,"Electricity Rate Next 1,500 kWh",null,null,"Distribution Loss Factor - Primary Metered Customer > 5,000 kW",null,null,null,null,null,null,null,null,null,null,"RTSR_Connection",null,null,"Credit reference Letter","Disconnect/Reconnect at meter – after regular hours",null,null,null,null,null,null,null,null,null,null,"Clinton Power Corporation","Centre Wellington Hydro Ltd.",null,"GENERAL SERVICE 1,500 TO 4,999 KW","kW",null,null,null,"Total Bill on RPP (including OCEB)",null,null,{"$f":"AW10+AW11","v":0},null,null,{"$f":"AZ10+AZ11","v":0},null,{"$f":"AZ12-AW12","v":0},{"$f":"BB12/AW12","v":{"$error":"#DIV/0!"}}]
["GENERAL SERVICE 2,500 TO 4,999 KW",null,null,null,null,null,null,null,"General Service 1,500 to 4,999 kW customer",null,null,null,null,null,null,null,null,null,null,null,null,null,null,null,null,null,null,null,null,null,null,null,null,null,null,null,null,"COLLUS Power Corporation","Chapleau Public Utilities Corporation",null,"GENERAL SERVICE 2,500 TO 4,999 KW","kW"]
["GENERAL SERVICE 3,000 TO 4,999 KW",null,null,null,null,null,null,null,"General Service 50 to 1,499 kW customer",null,null,"Total Loss Factor - Embedded Distributor",null,null,null,null,null,null,null,null,null,null,"RTSR_Network_Interval",null,null,"Credit reference/credit check (plus credit agency costs – General Service)","Disconnect/Reconnect at meter – during regular hours",null,null,null,null,null,null,null,null,null,null,"Cooperative Hydro Embrun Inc.","Clinton Power Corporation",null,"GENERAL SERVICE 3,000 TO 4,999 KW - INTERMEDIATE USE","kW",null,null,null,"Total Bill on TOU (before taxes)",null,null,null,null,null,null,null,{"$f":"AZ14-AW14","v":0}]
["GENERAL SERVICE 3,000 TO 4,999 KW - INTERMEDIATE USE",null,null,null,null,null,null,null,"General Service Large Use customer",null,null,"Total Loss Factor – Embedded Distributor – Hydro One Networks Inc.",null,null,null,null,null,null,null,null,null,null,"RTSR_Connection_Interval",null,null,"Credit Reference/credit check (plus credit agency costs)","Disconnect/Reconnect at pole – after regular hours",null,null,null,null,null,null,null,null,null,null,"E.L.K. Energy Inc.","COLLUS Power Corporation",null,"GENERAL SERVICE 3,000 TO 4,999 KW - INTERVAL METERED","kW",null,null,null,"HST",null,null,{"$f":"AV15*AW14","v":0},null,{"$f":"AV15","v":0},{"$f":"AY15*AZ14","v":0},null,{"$f":"AZ15-AW15","v":0},{"$f":"BB15/AW15","v":{"$error":"#DIV/0!"}}]
["GENERAL SERVICE 3,000 TO 4,999 KW - INTERVAL METERED",null,null,null,null,null,null,null,"Green Energy Act Initiatives Funding Adder - effective until the date of the next cost of service-based rate order",null,null,null,null,null,null,null,null,null,null,null,null,null,"RTSR_Network_Interval_GR1000kW",null,null,"Dispute Test – Commercial self contained -- MC","Disconnect/Reconnect at pole – during regular hours",null,null,null,null,null,null,null,null,null,null,"Enersource Hydro Mississauga Inc.","Cooperative Hydro Embrun Inc.",null,"GENERAL SERVICE 3,000 TO 4,999 KW - TIME OF USE","kW",null,null,null,"Total Bill (including HST)",null,null,{"$f":"AW15+AW14","v":0},null,null,{"$f":"AZ15+AZ14","v":0},null,{"$f":"AZ16-AW16","v":0},{"$f":"BB16/AW16","v":{"$error":"#DIV/0!"}}]
["GENERAL SERVICE 3,000 TO 4,999 KW - TIME OF USE",null,null,null,null,null,null,null,"Green Energy Act Plan Funding Adder",null,null,null,null,null,null,null,null,null,null,null,null,null,"RTSR_Connection_Interval_GR1000kW",null,null,"Dispute Test – Commercial TT -- MC","Disconnect/Reconnect Charge – At Meter – After Hours",null,null,null,null,null,null,null,null,null,null,"Entegrus Powerlines Inc.","E.L.K. Energy Inc.",null,"GENERAL SERVICE 3,000 TO 4,999 KW","kW",null,null,null,"Ontario Clean Energy Benefit (OCEB)",null,null,{"$f":"-0.1*AW16","v":0},null,{"$f":"AV17","v":0},{"$f":"-0.1*AZ16","v":0},null,{"$f":"AZ17-AW17","v":0},{"$f":"BB17/AW17","v":{"$error":"#DIV/0!"}}]
["GENERAL SERVICE 50 TO 1,000 KW",null,null,null,null,null,null,null,"Green Energy Act Plan Funding Adder - effective April 1, 2013 until March 31, 2014",null,null,null,null,null,null,null,null,null,null,null,null,null,"RTSR_Line_Connection",null,null,"Dispute Test – Residential","Disconnect/Reconnect Charge – At Meter – During Regular Hours",null,null,null,null,null,null,null,null,null,null,"ENWIN Utilities Ltd.","Enersource Hydro Mississauga Inc.",null,"GENERAL SERVICE 50 TO 1,000 KW - INTERVAL METERS","kW",null,null,null,"Total Bill on TOU (including OCEB)",null,null,{"$f":"AW16+AW17","v":0},null,null,{"$f":"AZ16+AZ17","v":0},null,{"$f":"AZ18-AW18","v":0},{"$f":"BB18/AW18","v":{"$error":"#DIV/0!"}}]
["GENERAL SERVICE 50 TO 1,000 KW - INTERVAL METERS",null,null,null,null,null,null,null,"Green Energy Act Plan Funding Adder - effective April 1, 2014 until March 31, 2015",null,null,null,null,null,null,null,null,null,null,null,null,null,"RTSR_Transformer_Connection",null,null,"Duplicate Invoices for previous billing","Disconnect/Reconnect Charge – At Pole – After Hours",null,null,null,null,null,null,null,null,null,null,"Erie Thames Powerlines Corporation","Entegrus Powerlines Inc. - Chatham-Kent",null,"GENERAL SERVICE 50 TO 1,000 KW - NON INTERVAL METERS","kW"]
["GENERAL SERVICE 50 TO 1,000 KW - NON INTERVAL METERS",null,null,null,null,null,null,null,"ICM Rate Rider (2014) - in effect until the effective date of the next cost of service rates",null,null,null,null,null,null,null,null,null,null,null,null,null,"WMSR",null,null,"Easement Letter","Disconnect/Reconnect Charge – At Pole – During Regular Hours",null,null,null,null,null,null,null,null,null,null,"Espanola Regional Hydro Distribution Corporation","Entegrus Powerlines Inc. - Dutton",null,"GENERAL SERVICE 50 TO 1,000 KW","kW"]
["GENERAL SERVICE 50 TO 1,499 KW",null,null,null,null,null,null,null,"Low Voltage Service Charge",null,null,null,null,null,null,null,null,null,null,null,null,null,"RRRP",null,null,"Income Tax Letter","Disconnect/Reconnect Charges for non payment of account - At Meter After Hours",null,null,null,null,null,null,null,null,null,null,"Essex Powerlines Corporation","Entegrus Powerlines Inc. - Newbury",null,"GENERAL SERVICE 50 TO 1,499 KW - INTERVAL METERED","kW"]
["GENERAL SERVICE 50 TO 1,499 KW - INTERVAL METERED",null,null,null,null,null,null,null,"Low Voltage Service Rate",null,null,null,null,null,null,null,null,null,null,null,null,null,"SPC",null,null,"Interval Meter Interrogation","Disconnect/Reconnect charges for non payment of account – at meter after regular hours",null,null,null,null,null,null,null,null,null,null,"Festival Hydro Inc.","Entegrus Powerlines Inc. - Strathroy, Mounth Brydges & Parkhill",null,"GENERAL SERVICE 50 TO 1,499 KW","kW"]
["GENERAL SERVICE 50 TO 2,499 KW",null,null,null,null,null,null,null,"Low Voltage Volumetric Rate",null,null,null,null,null,null,null,null,null,null,null,null,null,"DRC",null,null,"Interval meter request change","Disconnect/Reconnect Charges for non payment of account - At Meter During Regular Hours",null,null,null,null,null,null,null,null,null,null,"Fort Albany Power Corporation","ENWIN Utilities Ltd.",null,"GENERAL SERVICE 50 TO 2,499 KW","kW"]
["GENERAL SERVICE 50 TO 2,999 KW",null,null,null,null,null,null,null,"LRAM Rate Rider - Effective Until April 30, 2015",null,null,null,null,null,null,null,null,null,null,null,null,null,"SSS",null,null,"Legal letter","Disconnect/Reconnect charges for non payment of account – at meter during regular hours",null,null,null,null,null,null,null,null,null,null,"Fort Frances Power Corporation","Erie Thames Powerlines Corporation",null,"GENERAL SERVICE 50 TO 2,999 KW - INTERVAL METERED","kW"]
["GENERAL SERVICE 50 TO 2,999 KW - INTERVAL METERED",null,null,null,null,null,null,null,"Minimum Distribution Charge - per KW of maximum billing demand in the previous 11 months",null,null,null,null,null,null,null,null,null,null,null,null,null,"SFLF",null,null,"Legal letter charge","Disconnect/Reconnect charges for non payment of account – at pole after regular hours",null,null,null,null,null,null,null,null,null,null,"Greater Sudbury Hydro Inc.","Espanola Regional Hydro Distribution Corporation",null,"GENERAL SERVICE 50 TO 2,999 KW - TIME OF USE","kW"]
["GENERAL SERVICE 50 TO 2,999 KW - TIME OF USE","January",null,null,null,null,null,null,"Monthly Distribution Wheeling Service Rate - Dedicated LV Line",null,null,null,null,null,null,null,null,null,null,null,null,null,"DLF_Secondary_LT_5000kW",null,null,"Meter dispute charge plus Measurement Canada fees (if meter found correct)","Disconnect/Reconnect charges for non payment of account – at pole during regular hours",null,null,null,null,null,null,null,null,null,null,"Grimsby Power Inc.","Essex Powerlines Corporation",null,"GENERAL SERVICE 50 TO 2,999 KW","kW"]
["GENERAL SERVICE 50 TO 4,999 KW","February",null,null,null,null,null,null,"Monthly Distribution Wheeling Service Rate - Hydro One Networks",null,null,null,null,null,null,null,null,null,null,null,null,null,"DLF_Secondary_GT_5000kW",null,null,"Notification charge","Disconnect/Reconnection for >300 volts - after regular hours",null,null,null,null,null,null,null,null,null,null,"Guelph Hydro Electric Systems Inc.","Festival Hydro Inc.",null,"GENERAL SERVICE 50 TO 4,999 KW - INTERVAL METERED","kW"]
["GENERAL SERVICE 50 TO 4,999 KW - INTERVAL METERED","March",null,null,null,null,null,null,"Monthly Distribution Wheeling Service Rate - Shared LV Line",null,null,null,null,null,null,null,null,null,null,null,null,null,"DLF_Primary_LT_5000kW",null,null,"Pulling Post Dated Cheques","Disconnect/Reconnection for >300 volts - during regular hours",null,null,null,null,null,null,null,null,null,null,"Haldimand County Hydro Inc.","Festival Hydro Inc. - Hensall",null,"GENERAL SERVICE 50 TO 4,999 KW - TIME OF USE","kW"]
["GENERAL SERVICE 50 TO 4,999 KW - TIME OF USE","April",null,null,null,null,null,null,"Monthly Distribution Wheeling Service Rate - Waterloo North Hydro",null,null,null,null,null,null,null,null,null,null,null,null,null,"DLF_Primary_GT_5000kW",null,null,"Request for other billing information","Disposal of Concrete Poles",null,null,null,null,null,null,null,null,null,null,"Halton Hills Hydro Inc.","Fort Albany Power Corporation",null,"GENERAL SERVICE 50 TO 4,999 KW (COGENERATION)","kW"]
["GENERAL SERVICE 50 TO 4,999 KW (COGENERATION)","May",null,null,null,null,null,null,"Rate Rider for Application of Tax Change - effective until April 30, 2015",null,null,null,null,null,null,null,null,null,null,null,null,null,"TLF_Secondary_LT_5000kW",null,null,"Returned cheque (plus bank charges)","Dispute Test – Commercial TT -- MC",null,null,null,null,null,null,null,null,null,null,"Hearst Power Distribution Company Limited","Fort Frances Power Corporation",null,"GENERAL SERVICE 50 TO 4,999 KW (FORMERLY TIME OF USE)","kW"]
["GENERAL SERVICE 50 TO 4,999 KW (FORMERLY TIME OF USE)","June",null,null,null,null,null,null,"Rate Rider for Application of Tax Change - effective until December 31, 2014",null,null,null,null,null,null,null,null,null,null,null,null,null,"TLF_Secondary_GT_5000kW",null,null,"Returned cheque charge (plus bank charges)","Install/Remove load control device – after regular hours",null,null,null,null,null,null,null,null,null,null,"Horizon Utilities Corporation","Greater Sudbury Hydro Inc.",null,"GENERAL SERVICE 50 TO 4,999 KW","kW"]
["GENERAL SERVICE 50 TO 499 KW","July",null,null,null,null,null,null,"Rate Rider for Application of Tax Change (2014) - effective until April 30, 2015",null,null,null,null,null,null,null,null,null,null,null,null,null,"TLF_Primary_LT_5000kW",null,null,"Special Billing Service (aggregation)","Install/Remove load control device – during regular hours",null,null,null,null,null,null,null,null,null,null,"Hydro 2000 Inc.","Grimsby Power Inc.",null,"GENERAL SERVICE 50 TO 499 KW","kW"]
["GENERAL SERVICE 50 TO 699 KW","August",null,null,null,null,null,null,"Rate Rider for Application of Tax Change (per connection) - effective until April 30, 2015",null,null,null,null,null,null,null,null,null,null,null,null,null,"TLF_Primary_GT_5000kW",null,null,"Special Billing Service (sub-metering charge per meter)","Interval Meter Interrogation",null,null,null,null,null,null,null,null,null,null,"Hydro Hawkesbury Inc.","Guelph Hydro Electric Systems Inc.",null,"GENERAL SERVICE 50 TO 699 KW","kW"]
["GENERAL SERVICE 50 TO 999 KW","September",null,null,null,null,null,null,"Rate Rider for CGAAP Accounting Changes (2013) - effective until April 30, 2017",null,null,null,null,null,null,null,null,null,null,null,null,null,"TLF_EmbeddedDistributor",null,null,"Special meter reads","Interval Meter Load Management Tool Charge $/month",null,null,null,null,null,null,null,null,null,null,"Hydro One Brampton Networks Inc.","Haldimand County Hydro Inc.",null,"GENERAL SERVICE 50 TO 999 KW - INTERVAL METERED","kW"]
["GENERAL SERVICE 50 TO 999 KW - INTERVAL METERED","October",null,null,null,null,null,null,"Rate Rider for Deferral/Variance Account (2012) - effective unitl April 30, 2016",null,null,null,null,null,null,null,null,null,null,null,null,null,null,null,null,"Statement of Account","Interval meter request change",null,null,null,null,null,null,null,null,null,null,"Hydro One Networks Inc.","Halton Hills Hydro Inc.",null,"GENERAL SERVICE 50 TO 999 KW","kW"]
["GENERAL SERVICE 500 TO 4,999 KW","November",null,null,null,null,null,null,"Rate Rider for Deferral/Variance Account Disposition – effective until April 30, 2015",null,null,null,null,null,null,null,null,null,null,null,null,null,null,null,null,"Unprocessed Payment Charge (plus bank charges)","Late Payment – per annum",null,null,null,null,null,null,null,null,null,null,"Hydro Ottawa Limited","Hearst Power Distribution Company Limited",null,"GENERAL SERVICE 500 TO 4,999 KW","kW"]
["GENERAL SERVICE 700 TO 4,999 KW","December",null,null,null,null,null,null,"Rate Rider for Deferral/Variance Account Disposition (2012) - effective until April 30, 2016",null,null,null,null,null,null,null,null,null,null,null,null,null,null,null,null,null,"Late Payment – per month",null,null,null,null,null,null,null,null,null,null,"Innisfil Hydro Distribution Systems Limited","Horizon Utilities Corporation",null,"GENERAL SERVICE 700 TO 4,999 KW","kW"]
["GENERAL SERVICE DEMAND BILLED (50 KW AND ABOVE) [GSD]",null,null,null,null,null,null,null,"Rate Rider for Deferral/Variance Account Disposition (2013) - effective until April 30, 2014",null,null,null,null,null,null,null,null,null,null,null,null,null,null,null,null,null,"Layout fees",null,null,null,null,null,null,null,null,null,null,"Kashechewan Power Corporation","Hydro 2000 Inc.",null,"GENERAL SERVICE DEMAND BILLED (50 KW AND ABOVE) [GSD]","kW"]
["GENERAL SERVICE ENERGY BILLED (LESS THAN 50 KW) [GSE-METERED]",null,null,null,null,null,null,null,"Rate Rider for Deferral/Variance Account Disposition (2014) - effective until April 28, 2016",null,null,null,null,null,null,null,null,null,null,null,null,null,null,null,null,null,"Meter dispute charge plus Measurement Canada fees (if meter found correct)",null,null,null,null,null,null,null,null,null,null,"Kenora Hydro Electric Corporation Ltd.","Hydro Hawkesbury Inc.",null,"GENERAL SERVICE ENERGY BILLED (LESS THAN 50 KW) [GSE-METERED]","kWh"]
["GENERAL SERVICE ENERGY BILLED (LESS THAN TO 50 KW) [GSE-UNMETERED]",null,null,null,null,null,null,null,"Rate Rider for Deferral/Variance Account Disposition (2014) - effective until April 30, 2015",null,null,null,null,null,null,null,null,null,null,null,null,null,null,null,null,null,"Meter Interrogation Charge",null,null,null,null,null,null,null,null,null,null,"Kingston Hydro Corporation","Hydro One Brampton Networks Inc.",null,"GENERAL SERVICE ENERGY BILLED (LESS THAN TO 50 KW) [GSE-UNMETERED]","kWh"]
["GENERAL SERVICE EQUAL TO OR GREATER THAN 1,500 KW",null,null,null,null,null,null,null,"Rate Rider for Deferral/Variance Account Disposition (2014) - effective until Decembeer 31, 2015",null,null,null,null,null,null,null,null,null,null,null,null,null,null,null,null,null,"Missed Service Appointment",null,null,null,null,null,null,null,null,null,null,"Kitchener-Wilmot Hydro Inc.","Hydro One Networks Inc.",null,"GENERAL SERVICE EQUAL TO OR GREATER THAN 1,500 KW - INTERVAL METERED","kW"]
["GENERAL SERVICE EQUAL TO OR GREATER THAN 1,500 KW - INTERVAL METERED",null,null,null,null,null,null,null,"Rate Rider for Deferral/Variance Account Disposition (2014) - effective until December 30, 2015",null,null,null,null,null,null,null,null,null,null,null,null,null,null,null,null,null,"Norfolk Pole Rentals – Billed",null,null,null,null,null,null,null,null,null,null,"Lakefront Utilities Inc.","Hydro Ottawa Limited",null,"GENERAL SERVICE EQUAL TO OR GREATER THAN 1,500 KW","kW"]
["GENERAL SERVICE GREATER THAN 1,000 KW",null,null,null,null,null,null,null,"Rate Rider for Deferral/Variance Account Disposition (2014) - effective until December 31, 2014",null,null,null,null,null,null,null,null,null,null,null,null,null,null,null,null,null,"Optional Interval/TOU Meter charge $/month",null,null,null,null,null,null,null,null,null,null,"Lakeland Power Distribution Ltd.","Innisfil Hydro Distribution Systems Limited",null,"GENERAL SERVICE GREATER THAN 1,000 KW","kW"]
["GENERAL SERVICE GREATER THAN 50 kW - WMP",null,null,null,null,null,null,null,"Rate Rider for Deferral/Variance Account Disposition (2014) - effective until December 31, 2015",null,null,null,null,null,null,null,null,null,null,null,null,null,null,null,null,null,"Overtime Locate",null,null,null,null,null,null,null,null,null,null,"London Hydro Inc.","Kashechewan Power Corporation",null,"GENERAL SERVICE INTERMEDIATE 1,000 TO 4,999 KW","kW"]
["GENERAL SERVICE INTERMEDIATE 1,000 TO 4,999 KW",null,null,null,null,null,null,null,"Rate Rider for Deferral/Variance Account Dispositon (2012) - effective until April 30, 2016",null,null,null,null,null,null,null,null,null,null,null,null,null,null,null,null,null,"Owner Requested Disconnection/Reconnection – after regular hours",null,null,null,null,null,null,null,null,null,null,"Midland Power Utility Corporation","Kenora Hydro Electric Corporation Ltd.",null,"GENERAL SERVICE INTERMEDIATE RATE CLASS 1,000 TO 4,999 KW (FORMERLY GENERAL SERVICE > 50 KW CUSTOMERS)","kW"]
["GENERAL SERVICE INTERMEDIATE RATE CLASS 1,000 TO 4,999 KW (FORMERLY GENERAL SERVICE > 50 KW CUSTOMERS)",null,null,null,null,null,null,null,"Rate Rider for Disposition of Accounting Changes Under CGAAP Account 1576 - effective until April 30, 2016",null,null,null,null,null,null,null,null,null,null,null,null,null,null,null,null,null,"Owner Requested Disconnection/Reconnection – during regular hours",null,null,null,null,null,null,null,null,null,null,"Milton Hydro Distribution inc.","Kingston Hydro Corporation",null,"GENERAL SERVICE INTERMEDIATE RATE CLASS 1,000 TO 4,999 KW (FORMERLY LARGE USE CUSTOMERS)","kW"]
["GENERAL SERVICE INTERMEDIATE RATE CLASS 1,000 TO 4,999 KW (FORMERLY LARGE USE CUSTOMERS)",null,null,null,null,null,null,null,"Rate Rider for Disposition of Deferral/Variance Accounts (2010) - effective until December 31, 2014",null,null,null,null,null,null,null,null,null,null,null,null,null,null,null,null,null,"Returned cheque (plus bank charges)",null,null,null,null,null,null,null,null,null,null,"Newmarket - Tay Power Distribution Ltd.","Kitchener-Wilmot Hydro Inc.",null,"GENERAL SERVICE LESS THAN 50 KW - SINGLE PHASE ENERGY-BILLED [G1]","kWh"]
["GENERAL SERVICE LESS THAN 50 KW",null,null,null,null,null,null,null,"Rate Rider for Disposition of Deferral/Variance Accounts (2011) - effective until April 30, 2015",null,null,null,null,null,null,null,null,null,null,null,null,null,null,null,null,null,"Rural system expansion / line connection fee",null,null,null,null,null,null,null,null,null,null,"Niagara Peninsula Energy Inc.","Lakefront Utilities Inc.",null,"GENERAL SERVICE LESS THAN 50 KW - THREE PHASE ENERGY-BILLED [G3]","kWh"]
["GENERAL SERVICE LESS THAN 50 KW - SINGLE PHASE ENERGY-BILLED [G1]",null,null,null,null,null,null,null,"Rate Rider for Disposition of Deferral/Variance Accounts (2011) - effective until April 30, 2016",null,null,null,null,null,null,null,null,null,null,null,null,null,null,null,null,null,"Same Day Open Trench",null,null,null,null,null,null,null,null,null,null,"Niagara-on-the-Lake Hydro Inc.","Lakeland Power Distribution Ltd.",null,"GENERAL SERVICE LESS THAN 50 KW - TRANSMISSION CLASS ENERGY-BILLED [T]","kWh"]
["GENERAL SERVICE LESS THAN 50 KW - THREE PHASE ENERGY-BILLED [G3]",null,null,null,null,null,null,null,"Rate Rider for Disposition of Deferral/Variance Accounts (2012) - effective until April 30, 2014",null,null,null,null,null,null,null,null,null,null,null,null,null,null,null,null,null,"Scheduled Day Open Trench",null,null,null,null,null,null,null,null,null,null,"Norfolk Power Distribution Inc.","London Hydro Inc.",null,"GENERAL SERVICE LESS THAN 50 KW - URBAN ENERGY-BILLED [UG]","kWh"]
["GENERAL SERVICE LESS THAN 50 KW - TRANSMISSION CLASS ENERGY-BILLED [T]",null,null,null,null,null,null,null,"Rate Rider for Disposition of Deferral/Variance Accounts (2012) - effective until April 30, 2015",null,null,null,null,null,null,null,null,null,null,null,null,null,null,null,null,null,"Service call – after regular hours",null,null,null,null,null,null,null,null,null,null,"North Bay Hydro Distribution Limited","Midland Power Utility Corporation",null,"GENERAL SERVICE LESS THAN 50 KW","kWh"]
["GENERAL SERVICE LESS THAN 50 KW - URBAN ENERGY-BILLED [UG]",null,null,null,null,null,null,null,"Rate Rider for Disposition of Deferral/Variance Accounts (2012) - effective until April 30, 2016",null,null,null,null,null,null,null,null,null,null,null,null,null,null,null,null,null,"Service call – customer owned equipment",null,null,null,null,null,null,null,null,null,null,"Northern Ontario Wires Inc.","Milton Hydro Distribution inc.",null,"GENERAL SERVICE SINGLE PHASE - G1","kW"]
["GENERAL SERVICE SINGLE PHASE - G1",null,null,null,null,null,null,null,"Rate Rider for Disposition of Deferral/Variance Accounts (2012) - effective until August 31, 2014",null,null,null,null,null,null,null,null,null,null,null,null,null,null,null,null,null,"Service Call – Customer-owned Equipment – After Regular Hours",null,null,null,null,null,null,null,null,null,null,"Oakville Hydro Electricity Distribution Inc.","Newmarket - Tay Power Distribution Ltd. - Newmarket",null,"GENERAL SERVICE THREE PHASE - G3","kW"]
["GENERAL SERVICE THREE PHASE - G3",null,null,null,null,null,null,null,"Rate Rider for Disposition of Deferral/Variance Accounts (2012) - effective until December 31, 2015",null,null,null,null,null,null,null,null,null,null,null,null,null,null,null,null,null,"Service Call – Customer-owned Equipment – During Regular Hours",null,null,null,null,null,null,null,null,null,null,"Orangeville Hydro Limited","Newmarket - Tay Power Distribution Ltd. - Tay",null,"INTERMEDIATE USERS","kW"]
["INTERMEDIATE USERS",null,null,null,null,null,null,null,"Rate Rider for Disposition of Deferral/Variance Accounts (2012) - effective until December 31, 2016 Applicable only in the former service area of Clinton Power",null,null,null,null,null,null,null,null,null,null,null,null,null,null,null,null,null,"Service Charge for onsite interrogation of interval meter due to customer phone line failure - required weekly until line repaired $ 6",null,null,null,null,null,null,null,null,null,null,"Orillia Power Distribution Corporation","Niagara Peninsula Energy Inc. - Niagara Falls",null,"INTERMEDIATE WITH SELF GENERATION","kW"]
["INTERMEDIATE WITH SELF GENERATION",null,null,null,null,null,null,null,"Rate Rider for Disposition of Deferral/Variance Accounts (2012) – effective until December 31, 2016 Applicable only in the former service area of Clinton Power",null,null,null,null,null,null,null,null,null,null,null,null,null,null,null,null,null,"Service Layout - Commercial",null,null,null,null,null,null,null,null,null,null,"Oshawa PUC Networks Inc.","Niagara Peninsula Energy Inc. - Peninsula West",null,"LARGE USE - 3TS","kW"]
["LARGE USE",null,null,null,null,null,null,null,"Rate Rider for Disposition of Deferral/Variance Accounts (2012) - effective until January 31, 2014",null,null,null,null,null,null,null,null,null,null,null,null,null,null,null,null,null,"Service Layout - ResidentiaI",null,null,null,null,null,null,null,null,null,null,"Ottawa River Power Corporation","Niagara-on-the-Lake Hydro Inc.",null,"LARGE USE - FORD ANNEX","kW"]
["LARGE USE - 3TS",null,null,null,null,null,null,null,"Rate Rider for Disposition of Deferral/Variance Accounts (2012) - effective until June 30, 2014",null,null,null,null,null,null,null,null,null,null,null,null,null,null,null,null,null,"Special Billing Service (sub-metering charge per meter)",null,null,null,null,null,null,null,null,null,null,"Parry Sound Power Corporation","Norfolk Power Distribution Inc.",null,"LARGE USE - REGULAR","kW"]
["LARGE USE - FORD ANNEX",null,null,null,null,null,null,null,"Rate Rider for Disposition of Deferral/Variance Accounts (2013) - Applicable only to Wholesale Market Participants - effective until April 30, 2015",null,null,null,null,null,null,null,null,null,null,null,null,null,null,null,null,null,"Special meter reads",null,null,null,null,null,null,null,null,null,null,"Peterborough Distribution Incorporated","North Bay Hydro Distribution Limited",null,"LARGE USE > 5000 KW","kW"]
["LARGE USE - REGULAR",null,null,null,null,null,null,null,"Rate Rider for Disposition of Deferral/Variance Accounts (2013) - effective until April 30, 2014",null,null,null,null,null,null,null,null,null,null,null,null,null,null,null,null,null,"Specific Charge for Access to the Power Poles - $/pole/year",null,null,null,null,null,null,null,null,null,null,"PowerStream Inc.","Northern Ontario Wires Inc.",null,"LARGE USE","kW"]
["LARGE USE > 5000 KW",null,null,null,null,null,null,null,"Rate Rider for Disposition of Deferral/Variance Accounts (2013) - effective until April 30, 2015",null,null,null,null,null,null,null,null,null,null,null,null,null,null,null,null,null,"Specific Charge for Bell Canada Access to the Power Poles – per pole/year",null,null,null,null,null,null,null,null,null,null,"PUC Distribution Inc.","Oakville Hydro Electricity Distribution Inc.",null,"microFIT","$"]
["microFIT",null,null,null,null,null,null,null,"Rate Rider for Disposition of Deferral/Variance Accounts (2013) - effective until April 30, 2015, not applicable to Wholesale Market Participants",null,null,null,null,null,null,null,null,null,null,null,null,null,null,null,null,null,"Switching for company maintenance – Charge based on Time and Materials",null,null,null,null,null,null,null,null,null,null,"Renfrew Hydro Inc.","Orangeville Hydro Limited",null,"RESIDENTIAL - HENSALL","kWh"]
["RESIDENTIAL",null,null,null,null,null,null,null,"Rate Rider for Disposition of Deferral/Variance Accounts (2013) - effective until April 30, 2017",null,null,null,null,null,null,null,null,null,null,null,null,null,null,null,null,null,"Temporary Service – Install & remove – overhead – no transformer",null,null,null,null,null,null,null,null,null,null,"Rideau St. Lawrence Distribution Inc.","Orillia Power Distribution Corporation",null,"RESIDENTIAL - HIGH DENSITY [R1]","kWh"]
["RESIDENTIAL - HENSALL",null,null,null,null,null,null,null,"Rate Rider for Disposition of Deferral/Variance Accounts (2013) - effective until August 31, 2014",null,null,null,null,null,null,null,null,null,null,null,null,null,null,null,null,null,"Temporary Service – Install & remove – overhead – with transformer",null,null,null,null,null,null,null,null,null,null,"Sioux Lookout Hydro Inc.","Oshawa PUC Networks Inc.",null,"RESIDENTIAL - LOW DENSITY [R2]","kWh"]
["RESIDENTIAL - HIGH DENSITY [R1]",null,null,null,null,null,null,null,"Rate Rider for Disposition of Deferral/Variance Accounts (2013) - effective until December 31, 2014",null,null,null,null,null,null,null,null,null,null,null,null,null,null,null,null,null,"Temporary Service – Install & remove – underground – no transformer",null,null,null,null,null,null,null,null,null,null,"St. Thomas Energy Inc.","Ottawa River Power Corporation",null,"RESIDENTIAL - MEDIUM DENSITY [R1]","kWh"]
["RESIDENTIAL - LOW DENSITY [R2]",null,null,null,null,null,null,null,"Rate Rider for Disposition of Deferral/Variance Accounts (2013) - effective until May 31, 2014",null,null,null,null,null,null,null,null,null,null,null,null,null,null,null,null,null,"Temporary service install & remove – overhead – no transformer",null,null,null,null,null,null,null,null,null,null,"Thunder Bay Hydro Electricity Distribution Inc.","Parry Sound Power Corporation",null,"RESIDENTIAL - NORMAL DENSITY [R2]","kWh"]
["RESIDENTIAL - MEDIUM DENSITY [R1]",null,null,null,null,null,null,null,"Rate Rider for Disposition of Deferred PILs Variance Account 1562 - effective until March 31, 2016",null,null,null,null,null,null,null,null,null,null,null,null,null,null,null,null,null,"Temporary Service Install & Remove – Overhead – With Transformer",null,null,null,null,null,null,null,null,null,null,"Tillsonburg Hydro Inc.","Peterborough Distribution Incorporated",null,"RESIDENTIAL - TIME OF USE","kWh"]
["RESIDENTIAL - NORMAL DENSITY [R2]",null,null,null,null,null,null,null,"Rate Rider for Disposition of Deferred PILs Variance Account 1562 (2012) - effective until April 30, 2015",null,null,null,null,null,null,null,null,null,null,null,null,null,null,null,null,null,"Temporary Service Install & Remove – Underground – No Transformer",null,null,null,null,null,null,null,null,null,null,"Toronto Hydro-Electric System Limited","PowerStream Inc. - Barrie",null,"RESIDENTIAL - URBAN [UR]","kWh"]
["RESIDENTIAL - TIME OF USE",null,null,null,null,null,null,null,"Rate Rider for Disposition of Deferred PILs Variance Account 1562 (2012) - effective until April 30, 2016",null,null,null,null,null,null,null,null,null,null,null,null,null,null,null,null,null,"Temporary service installation and removal – overhead – no transformer",null,null,null,null,null,null,null,null,null,null,"Veridian Connections Inc.","PowerStream Inc. - South",null,"RESIDENTIAL REGULAR","kWh"]
["RESIDENTIAL - URBAN [UR]",null,null,null,null,null,null,null,"Rate Rider for Disposition of Deferred PILs Variance Account 1562 (2nd Installment - 2012) - effective until April 30, 2016",null,null,null,null,null,null,null,null,null,null,null,null,null,null,null,null,null,"Temporary service installation and removal – overhead – with transformer",null,null,null,null,null,null,null,null,null,null,"Wasaga Distribution Inc.","PUC Distribution Inc.",null,"RESIDENTIAL","kWh"]
["RESIDENTIAL REGULAR",null,null,null,null,null,null,null,"Rate Rider for Disposition of Deferred PILs Variance Account 1562 (per connection) (2012) - effective until April 30, 2015",null,null,null,null,null,null,null,null,null,null,null,null,null,null,null,null,null,"Temporary service installation and removal – underground – no transformer",null,null,null,null,null,null,null,null,null,null,"Waterloo North Hydro Inc.","Renfrew Hydro Inc.",null,"RESIDENTIAL SUBURBAN SEASONAL","kWh"]
["RESIDENTIAL SUBURBAN",null,null,null,null,null,null,null,"Rate Rider for Disposition of Deferred PILs Variance Account 1562 (per connection) (2012) - effective until April 30, 2016",null,null,null,null,null,null,null,null,null,null,null,null,null,null,null,null,null,null,null,null,null,null,null,null,null,null,null,null,"Welland Hydro-Electric System Corp.","Rideau St. Lawrence Distribution Inc.",null,"RESIDENTIAL SUBURBAN","kWh"]
["RESIDENTIAL SUBURBAN SEASONAL",null,null,null,null,null,null,null,"Rate Rider for Disposition of Global Adjustment Sub-Account (2011) - effective until April 30, 2015 Applicable only for Non-RPP Customers",null,null,null,null,null,null,null,null,null,null,null,null,null,null,null,null,null,null,null,null,null,null,null,null,null,null,null,null,"Wellington North Power Inc.","Sioux Lookout Hydro Inc.",null,"RESIDENTIAL SUBURBAN YEAR ROUND","kWh"]
["RESIDENTIAL SUBURBAN YEAR ROUND",null,null,null,null,null,null,null,"Rate Rider for Disposition of Global Adjustment Sub-Account (2011) - effective until April 30, 2016 Applicable only for Non-RPP Customers",null,null,null,null,null,null,null,null,null,null,null,null,null,null,null,null,null,null,null,null,null,null,null,null,null,null,null,null,"West Coast Huron Energy Inc.","St. Thomas Energy Inc.",null,"RESIDENTIAL URBAN","kWh"]
["RESIDENTIAL URBAN",null,null,null,null,null,null,null,"Rate Rider for Disposition of Global Adjustment Sub-Account (2012) - effective until April 30, 2014 Applicable only for Non-RPP Customers",null,null,null,null,null,null,null,null,null,null,null,null,null,null,null,null,null,null,null,null,null,null,null,null,null,null,null,null,"West Perth Power Inc.","Thunder Bay Hydro Electricity Distribution Inc.",null,"RESIDENTIAL URBAN YEAR-ROUND","kWh"]
["RESIDENTIAL URBAN YEAR-ROUND",null,null,null,null,null,null,null,"Rate Rider for Disposition of Global Adjustment Sub-Account (2012) - effective until April 30, 2015 Applicable only for Non-RPP Customers",null,null,null,null,null,null,null,null,null,null,null,null,null,null,null,null,null,null,null,null,null,null,null,null,null,null,null,null,"Westario Power Inc.","Tillsonburg Hydro Inc.",null,"SEASONAL RESIDENTIAL - HIGH DENSITY [R3]","kWh"]
["SEASONAL RESIDENTIAL",null,null,null,null,null,null,null,"Rate Rider for Disposition of Global Adjustment Sub-Account (2012) - effective until April 30, 2015 Applicatble only for Non-RPP Customers",null,null,null,null,null,null,null,null,null,null,null,null,null,null,null,null,null,null,null,null,null,null,null,null,null,null,null,null,"Whitby Hydro Electric Corporation","Toronto Hydro-Electric System Limited",null,"SEASONAL RESIDENTIAL - NORMAL DENSITY [R4]","kWh"]
["SEASONAL RESIDENTIAL - HIGH DENSITY [R3]",null,null,null,null,null,null,null,"Rate Rider for Disposition of Global Adjustment Sub-Account (2012) - effective until April 30, 2016 Applicable only for Non-RPP Customers",null,null,null,null,null,null,null,null,null,null,null,null,null,null,null,null,null,null,null,null,null,null,null,null,null,null,null,null,"Woodstock Hydro Services Inc.","Veridian Connections Inc.",null,"SEASONAL RESIDENTIAL","kWh"]
["SEASONAL RESIDENTIAL - NORMAL DENSITY [R4]",null,null,null,null,null,null,null,"Rate Rider for Disposition of Global Adjustment Sub-Account (2012) - effective until January 31, 2014. Applicable only for Non-RPP Customers",null,null,null,null,null,null,null,null,null,null,null,null,null,null,null,null,null,null,null,null,null,null,null,null,null,null,null,null,null,"Veridian Connections Inc. - Gravenhurst",null,"SENTINEL LIGHTING","kW"]
["SENTINEL LIGHTING",null,null,null,null,null,null,null,"Rate Rider for Disposition of Global Adjustment Sub-Account (2012) - effective until June 30, 2014 Applicable only for Non-RPP Customers",null,null,null,null,null,null,null,null,null,null,null,null,null,null,null,null,null,null,null,null,null,null,null,null,null,null,null,null,null,"Wasaga Distribution Inc.",null,"SMALL COMMERCIAL AND USL - PER CONNECTION","kW"]
["SMALL COMMERCIAL AND USL - PER CONNECTION",null,null,null,null,null,null,null,"Rate Rider for Disposition of Global Adjustment Sub-Account (2012) Applicable only for Non-RPP Customers - effective until August 31, 2014",null,null,null,null,null,null,null,null,null,null,null,null,null,null,null,null,null,null,null,null,null,null,null,null,null,null,null,null,null,"Waterloo North Hydro Inc.",null,"SMALL COMMERCIAL AND USL - PER METER","kW"]
["SMALL COMMERCIAL AND USL - PER METER",null,null,null,null,null,null,null,"Rate Rider for Disposition of Global Adjustment Sub-Account (2012) Applicable only to Non-RPP Customers - effective until August 31, 2014",null,null,null,null,null,null,null,null,null,null,null,null,null,null,null,null,null,null,null,null,null,null,null,null,null,null,null,null,null,"Welland Hydro-Electric System Corp.",null,"STANDARD A GENERAL SERVICE AIR ACCESS","kW"]
["STANDARD A GENERAL SERVICE AIR ACCESS",null,null,null,null,null,null,null,"Rate Rider for Disposition of Global Adjustment Sub-Account (2013) - effective until April 30, 2014 Applicable only for Non-RPP Customers",null,null,null,null,null,null,null,null,null,null,null,null,null,null,null,null,null,null,null,null,null,null,null,null,null,null,null,null,null,"Wellington North Power Inc.",null,"STANDARD A GENERAL SERVICE ROAD/RAIL","kW"]
["STANDARD A GENERAL SERVICE ROAD/RAIL",null,null,null,null,null,null,null,"Rate Rider for Disposition of Global Adjustment Sub-Account (2013) - effective until April 30, 2015 Applicable only for Non-RPP Customers",null,null,null,null,null,null,null,null,null,null,null,null,null,null,null,null,null,null,null,null,null,null,null,null,null,null,null,null,null,"West Coast Huron Energy Inc.",null,"STANDARD A RESIDENTIAL AIR ACCESS","kW"]
["STANDARD A GRID CONNECTED",null,null,null,null,null,null,null,"Rate Rider for Disposition of Global Adjustment Sub-Account (2013) - effective until April 30, 2015 Applicable only for Non-RPP Customers and excluding Wholesale Market Participants",null,null,null,null,null,null,null,null,null,null,null,null,null,null,null,null,null,null,null,null,null,null,null,null,null,null,null,null,null,"West Perth Power Inc.",null,"STANDARD A RESIDENTIAL ROAD/RAIL","kW"]
["STANDARD A RESIDENTIAL AIR ACCESS",null,null,null,null,null,null,null,"Rate Rider for Disposition of Global Adjustment Sub-Account (2013) - effective until April 30, 2017 Applicable only for Non-RPP Customers",null,null,null,null,null,null,null,null,null,null,null,null,null,null,null,null,null,null,null,null,null,null,null,null,null,null,null,null,null,"Westario Power Inc.",null,"STANDBY - GENERAL SERVICE 1,000 - 5,000 KW","kW"]
["STANDARD A RESIDENTIAL ROAD/RAIL",null,null,null,null,null,null,null,"Rate Rider For Disposition of Global Adjustment Sub-Account (2013) - effective until August 31, 2014 Applicable only for Non-RPP Customers",null,null,null,null,null,null,null,null,null,null,null,null,null,null,null,null,null,null,null,null,null,null,null,null,null,null,null,null,null,"Whitby Hydro Electric Corporation",null,"STANDBY - GENERAL SERVICE 50 - 1,000 KW","kW"]
["STANDBY - GENERAL SERVICE 1,000 - 5,000 KW",null,null,null,null,null,null,null,"Rate Rider for Disposition of Global Adjustment Sub-Account (2013) - effective until December 31, 2014 Applicable only for Non-RPP Customers",null,null,null,null,null,null,null,null,null,null,null,null,null,null,null,null,null,null,null,null,null,null,null,null,null,null,null,null,null,"Woodstock Hydro Services Inc.",null,"STANDBY - LARGE USE","kW"]
["STANDBY - GENERAL SERVICE 50 - 1,000 KW",null,null,null,null,null,null,null,"Rate Rider for Disposition of Global Adjustment Sub-Account (2013) - effective until May 31, 2014 Applicable only for Non-RPP Customers",null,null,null,null,null,null,null,null,null,null,null,null,null,null,null,null,null,null,null,null,null,null,null,null,null,null,null,null,null,null,null,"STANDBY DISTRIBUTION SERVICE","kW"]
["STANDBY - LARGE USE",null,null,null,null,null,null,null,"Rate Rider for Disposition of Global Adjustment Sub-Account (2014) - effective until December 31, 2014. Applicable only for Non-RPP - Class B Customers",null,null,null,null,null,null,null,null,null,null,null,null,null,null,null,null,null,null,null,null,null,null,null,null,null,null,null,null,null,null,null,"STANDBY POWER - APPROVED ON AN INTERIM BASIS","kW"]
["STANDBY DISTRIBUTION SERVICE",null,null,null,null,null,null,null,"Rate Rider for Disposition of Global Adjustment Sub-Account (2014) - effective until December 31, 2014. Applicable only for Non-RPP Customers",null,null,null,null,null,null,null,null,null,null,null,null,null,null,null,null,null,null,null,null,null,null,null,null,null,null,null,null,null,null,null,"STANDBY POWER GENERAL SERVICE 1,500 TO 4,999 KW","kW"]
["STANDBY POWER",null,null,null,null,null,null,null,"Rate Rider for Disposition of Global Adjustment Sub-Account (2014) - effective until December 31, 2014. Applicable only for Non-RPP Customers - Class A Customers",null,null,null,null,null,null,null,null,null,null,null,null,null,null,null,null,null,null,null,null,null,null,null,null,null,null,null,null,null,null,null,"STANDBY POWER GENERAL SERVICE 50 TO 1,499 KW","kW"]
["STANDBY POWER - APPROVED ON AN INTERIM BASIS",null,null,null,null,null,null,null,"Rate Rider for Disposition of Global Adjustment Sub-Account (2014) - effective until December 31, 2014. Applicable only for Non-RPP Customers - Interval Metered",null,null,null,null,null,null,null,null,null,null,null,null,null,null,null,null,null,null,null,null,null,null,null,null,null,null,null,null,null,null,null,"STANDBY POWER GENERAL SERVICE LARGE USE","kW"]
["STANDBY POWER GENERAL SERVICE 1,500 TO 4,999 KW",null,null,null,null,null,null,null,"Rate Rider for Disposition of Global Adjustment Sub-Account (2014) - effective until December 31, 2014. Applicable only for Non-RPP Customers - Non Interval Metered",null,null,null,null,null,null,null,null,null,null,null,null,null,null,null,null,null,null,null,null,null,null,null,null,null,null,null,null,null,null,null,"STANDBY POWER","kW"]
["STANDBY POWER GENERAL SERVICE 50 TO 1,499 KW",null,null,null,null,null,null,null,"Rate Rider for Disposition of Post Retirement Actuarial Gain - effective until March 31, 2025",null,null,null,null,null,null,null,null,null,null,null,null,null,null,null,null,null,null,null,null,null,null,null,null,null,null,null,null,null,null,null,"STREET LIGHTING","kWh"]
["STANDBY POWER GENERAL SERVICE LARGE USE",null,null,null,null,null,null,null,"Rate Rider for Disposition of Residual Hisotrical Smart Meter Costs - effective until April 30, 2015",null,null,null,null,null,null,null,null,null,null,null,null,null,null,null,null,null,null,null,null,null,null,null,null,null,null,null,null,null,null,null,"SUB TRANSMISSION [ST]","kW"]
["STREET LIGHTING",null,null,null,null,null,null,null,"Rate Rider for Disposition of Residual Hisotrical Smart Meter Costs - effective until April 30, 2017",null,null,null,null,null,null,null,null,null,null,null,null,null,null,null,null,null,null,null,null,null,null,null,null,null,null,null,null,null,null,null,"UNMETERED SCATTERED LOAD","kWh"]
["SUB TRANSMISSION [ST]",null,null,null,null,null,null,null,"Rate Rider for Disposition of Residual Historical Smart Meter Costs - effective until April 30, 2014",null,null,null,null,null,null,null,null,null,null,null,null,null,null,null,null,null,null,null,null,null,null,null,null,null,null,null,null,null,null,null,"URBAN GENERAL SERVICE DEMAND BILLED (50 KW AND ABOVE) [UGD]","kW"]
["UNMETERED SCATTERED LOAD",null,null,null,null,null,null,null,"Rate Rider for Disposition of Residual Historical Smart Meter Costs - effective until April 30, 2016",null,null,null,null,null,null,null,null,null,null,null,null,null,null,null,null,null,null,null,null,null,null,null,null,null,null,null,null,null,null,null,"URBAN GENERAL SERVICE ENERGY BILLED (LESS THAN 50 KW) [UGE]","kWh"]
["URBAN GENERAL SERVICE DEMAND BILLED (50 KW AND ABOVE) [UGD]",null,null,null,null,null,null,null,"Rate Rider for Disposition of Residual Historical Smart Meter Costs - effective until August 31, 2014",null,null,null,null,null,null,null,null,null,null,null,null,null,null,null,null,null,null,null,null,null,null,null,null,null,null,null,null,null,null,null,"WESTPORT SEWAGE TREATMENT PLANT","kW"]
["URBAN GENERAL SERVICE ENERGY BILLED (LESS THAN 50 KW) [UGE]",null,null,null,null,null,null,null,"Rate Rider for Disposition of Residual Historical Smart Meter Costs - effective until August 31, 2015",null,null,null,null,null,null,null,null,null,null,null,null,null,null,null,null,null,null,null,null,null,null,null,null,null,null,null,null,null,null,null,"YEAR-ROUND RESIDENTIAL - R2","kWh"]
["WESTPORT SEWAGE TREATMENT PLANT",null,null,null,null,null,null,null,"Rate Rider for Disposition of Residual Historical Smart Meter Costs - effective until December 31, 2014"]
["YEAR-ROUND RESIDENTIAL - R2",null,null,null,null,null,null,null,"Rate Rider for Disposition of Residual Historical Smart Meter Costs – effective until December 31, 2014"]
[null,null,null,null,null,null,null,null,"Rate Rider for Disposition of Residual Historical Smart Meter Costs - effective until December 31, 2015"]
[null,null,null,null,null,null,null,null,"Rate Rider for Disposition of Residual Historical Smart Meter Costs - effective until December 31, 2016"]
[null,null,null,null,null,null,null,null,"Rate Rider for Disposition of Residual Historical Smart Meter Costs - effective until October 31, 2014"]
[null,null,null,null,null,null,null,null,"Rate Rider for Disposition of Residual Historical Smart Meter Costs - effective until September 30, 2014"]
[null,null,null,null,null,null,null,null,"Rate Rider for Disposition of Residual Historical Smart Meter Costs - Non-Interval Metered \n - effective until April 30, 2014"]
[null,null,null,null,null,null,null,null,"Rate Rider for Disposition of Residual Historical Smart Meter Costs 2 - in effect until the effective \n date of the next cost of service-based rate order"]
[null,null,null,null,null,null,null,null,"Rate Rider for Disposition of Residual Historical Smart Meter Costs 3 - in effect until the effective \n date of the next cost of service-based rate order"]
[null,null,null,null,null,null,null,null,"Rate Rider for Disposition of Residual Incremental Historical Smart Meter Costs - \n effective until August 31, 2015"]
[null,null,null,null,null,null,null,null,"Rate Rider for Disposition of Stranded Meter costs - effective until April 30, 2015"]
[null,null,null,null,null,null,null,null,"Rate Rider for Disposition of Stranded Meter Costs - effective until April 30, 2016"]
[null,null,null,null,null,null,null,null,"Rate Rider for Disposition of Stranded Meter Costs - effective until April 30, 2017"]
[null,null,null,null,null,null,null,null,"Rate Rider for Global Adjustment Sub Account Disposition - effective until April 30, 2016 Applicable only for Non RPP Customers"]
[null,null,null,null,null,null,null,null,"Rate Rider for Global Adjustment Sub-Account Disposition \n Applicable only for Non-RPP Customers – effective until April 30, 2015"]
[null,null,null,null,null,null,null,null,"Rate Rider for Global Adjustment Sub-Account Disposition (2014) - effective until April 28, 2016 Applicable only for Non-RPP Customers"]
[null,null,null,null,null,null,null,null,"Rate Rider for Global Adjustment Sub-Account Disposition (2014) - effective until April 30, 2015 Applicable only for Non-RPP Customers"]
[null,null,null,null,null,null,null,null,"Rate Rider for Global Adjustment Sub-Account Disposition (2014) - effective until December 30, 2015 Applicable only for Non-RPP Customers"]
[null,null,null,null,null,null,null,null,"Rate Rider for Global Adjustment Sub-Account Disposition (2014) - effective until December 31, 2014 Applicable only for Non-RPP Customers"]
[null,null,null,null,null,null,null,null,"Rate Rider for Global Adjustment Sub-Account Disposition (2014) - effective until December 31, 2015 Applicable only for Non-RPP Customers"]
[null,null,null,null,null,null,null,null,"Rate Rider for Global Adjustment Sub-Account Disposition (2014) - effective until December, 2015 Applicable only for Non-RPP Customers"]
[null,null,null,null,null,null,null,null,"Rate Rider for Incremental Capital - Distribution Volumetric - effective until April 30, 2016"]
[null,null,null,null,null,null,null,null,"Rate Rider for Incremental Capital - Service Charge - effective until April 30, 2016"]
[null,null,null,null,null,null,null,null,"Rate Rider for Incremental Capital (2012) - effective until April 30, 2015"]
[null,null,null,null,null,null,null,null,"Rate Rider for Lost Revenue Adjustment Mechanism Variance Account (LRAMVA) Recovery \n (2012 CDM Activities) - effective until April 30, 2015"]
[null,null,null,null,null,null,null,null,"Rate Rider for Recover of Residual Historical Smart meter Costs - effective until June 30, 2014"]
[null,null,null,null,null,null,null,null,"Rate Rider for Recovery of CGAAP/CWIP Differential - in effect until December 31, 2016"]
[null,null,null,null,null,null,null,null,"Rate Rider for Recovery of Foregone Revenue - effective until April 30, 2015"]
[null,null,null,null,null,null,null,null,"Rate Rider for Recovery of Forgone Revenue - effective until April 30, 2015"]
[null,null,null,null,null,null,null,null,"Rate Rider for Recovery of Forgone Revenue - effective until December 31, 2014"]
[null,null,null,null,null,null,null,null,"Rate Rider for Recovery of Green Energy Act related costs - effective until December 31, 2014"]
[null,null,null,null,null,null,null,null,"Rate Rider for Recovery of Incremental Capital (2013) - in effect until the effective date of the next cost of service-based rate order"]
[null,null,null,null,null,null,null,null,"Rate Rider for Recovery of Incremental Capital (2013) - in effect until the effective date of the\n next cost of service-based rate order"]
[null,null,null,null,null,null,null,null,"Rate Rider for Recovery of Incremental Capital (2013) (per connection) - in effect until the effective date of \n the next cost of service-based rate order"]
[null,null,null,null,null,null,null,null,"Rate Rider for Recovery of Incremental Capital (2013) (per connection)- in effect until the effective date of the next cost of service-based rate order"]
[null,null,null,null,null,null,null,null,"Rate Rider for Recovery of Incremental Capital Costs"]
[null,null,null,null,null,null,null,null,"Rate Rider for Recovery of Incremental Capital Costs - effective until April 30, 2015"]
[null,null,null,null,null,null,null,null,"Rate Rider for Recovery of Lost Revenue Adjustment Mechanism ( LRAM)/Shared Savings Mechanism (SSM) (2012) - effective until August 31, 2014"]
[null,null,null,null,null,null,null,null,"Rate Rider for Recovery of Lost Revenue Adjustment Mechanism (2013) - effective until December 31, 2014"]
[null,null,null,null,null,null,null,null,"Rate Rider for Recovery of Lost Revenue Adjustment Mechanism (LRAM) - effective until April 30, 2016"]
[null,null,null,null,null,null,null,null,"Rate Rider for Recovery of Lost Revenue Adjustment Mechanism (LRAM) (pre-2011 CDM Activities) - effective until April 30, 2015"]
[null,null,null,null,null,null,null,null,"Rate Rider for Recovery of Lost Revenue Adjustment Mechanism (LRAM) (pre-2011 CDM Activities) (2013) - effective until April 30, 2015"]
[null,null,null,null,null,null,null,null,"Rate Rider for Recovery of Lost Revenue Adjustment Mechanism (LRAM)/Shared Savings"]
[null,null,null,null,null,null,null,null,"Rate Rider for Recovery of Lost Revenue Adjustment Mechanism (LRAM)/Shared Savings Mechanism (SSM) - effective until December 31, 2014 and applicable in the service area excluding the former service area of Clinton Power"]
[null,null,null,null,null,null,null,null,"Rate Rider for Recovery of Lost Revenue Adjustment Mechanism (LRAM)/Shared Savings Mechanism (SSM) - effective until December 31, 2014 and applicable in the service area excluding the former service areas of Clinton Power and West Perth Power"]
[null,null,null,null,null,null,null,null,"Rate Rider for Recovery of Lost Revenue Adjustment Mechanism (LRAM)/Shared Savings Mechanism (SSM) - effective until December 31, 2014 and applicable only in the former service area of Clinton Power"]
[null,null,null,null,null,null,null,null,"Rate Rider for Recovery of Lost Revenue Adjustment Mechanism (LRAM)/Shared Savings Mechanism (SSM) - effective until December 31, 2014 and applicable only in the former service area of West Perth Power"]
[null,null,null,null,null,null,null,null,"Rate Rider for Recovery of Lost Revenue Adjustment Mechanism (LRAM)/Shared Savings Mechanism (SSM) - effective until March 31, 2016"]
[null,null,null,null,null,null,null,null,"Rate Rider for Recovery of Lost Revenue Adjustment Mechanism (LRAM)/Shared Savings Mechanism (SSM) (2012) - effective until August 31, 2014"]
[null,null,null,null,null,null,null,null,"Rate Rider for Recovery of Lost Revenue Adjustment Mechanism (LRAM)/Shared Savings Mechanism (SSM) Recovery - effective until April 30, 2015"]
[null,null,null,null,null,null,null,null,"Rate Rider for Recovery of Lost Revenue Adjustment Mechanism Variance Account (LRAMVA) (2014) - effective until April 30, 2015"]
[null,null,null,null,null,null,null,null,"Rate Rider for Recovery of Residual Historical Smart Meter Costs - effective July 1, 2012 - April 30, 2016"]
[null,null,null,null,null,null,null,null,"Rate Rider for Recovery of Smart Meter Incremental Revenue Requirement - effective until the date of the next cost of service-based rate order"]
[null,null,null,null,null,null,null,null,"Rate Rider for Recovery of Smart Meter Incremental Revenue Requirement - effective until the effective date of the next cost of service-based rate order, or October 31, 2017, whichever occurs earlier"]
[null,null,null,null,null,null,null,null,"Rate Rider for Recovery of Smart Meter Incremental Revenue Requirement - in effect until the effective date of the next cost of service-based rate order"]
[null,null,null,null,null,null,null,null,"Rate Rider for Recovery of Smart Meter Incremental Revenue Requirement - Non-Interval Metered - in effect until the effective date of the next cost of service-based rate order"]
[null,null,null,null,null,null,null,null,"Rate Rider for Recovery of Smart Meter Incremental Revenue Requirements - in effect until the effective date of the next cost of service application"]
[null,null,null,null,null,null,null,null,"Rate Rider for Recovery of Smart Meter Stranded Assets - effective until April 30, 2016"]
[null,null,null,null,null,null,null,null,"Rate Rider for Recovery of Storm Damage Costs - effective until August 31, 2017"]
[null,null,null,null,null,null,null,null,"Rate Rider for Recovery of Stranded Assets - effective until April 30, 2016"]
[null,null,null,null,null,null,null,null,"Rate Rider for Recovery of Stranded Meter Assets - effective July 1, 2012 - April 30, 2016"]
[null,null,null,null,null,null,null,null,"Rate Rider for Recovery of Stranded Meter Assets – effective until April 30, 2015"]
[null,null,null,null,null,null,null,null,"Rate Rider for Recovery of Stranded Meter Assets - effective until April 30, 2016"]
[null,null,null,null,null,null,null,null,"Rate Rider for Recovery of Stranded Meter Assets - effective until April 30, 2017"]
[null,null,null,null,null,null,null,null,"Rate Rider for Recovery of Stranded Meter Assets - effective until August 31, 2015"]
[null,null,null,null,null,null,null,null,"Rate Rider for Recovery of Stranded Meter Assets - effective until August 31, 2017"]
[null,null,null,null,null,null,null,null,"Rate Rider for Recovery of Stranded Meter Assets - effective until December 31, 2014"]
[null,null,null,null,null,null,null,null,"Rate Rider for Recovery of Stranded Meter Assets - effective until December 31, 2015"]
[null,null,null,null,null,null,null,null,"Rate Rider for Recovery of Stranded Meter Assets - effective until June 30, 2016"]
[null,null,null,null,null,null,null,null,"Rate Rider for Recovery of Stranded Meter Assets - effective until March 31, 2016"]
[null,null,null,null,null,null,null,null,"Rate Rider for Recovery of Stranded Meter Assets - effective until May 31, 2014"]
[null,null,null,null,null,null,null,null,"Rate Rider for Reversal of Deferral/Variance Account Disposition (2011) - effective until April 30, 2015"]
[null,null,null,null,null,null,null,null,"Rate Rider for Smart Meter Disposition - effective until April 30, 2016"]
[null,null,null,null,null,null,null,null,"Rate Rider for Smart Meter Incremental Revenue Requirement - in effect until the effective date of the next cost of service-based rate order"]
[null,null,null,null,null,null,null,null,"Rate Rider for Smart Metering Entity Charge - effective until October 31, 2018"]
[null,null,null,null,null,null,null,null,"Rate Rider for Stranded Meter Cost Recovery - effective until April 30, 2017"]
[null,null,null,null,null,null,null,null,"Rate Rider for Tax Change"]
[null,null,null,null,null,null,null,null,"Rate Rider for Tax Change - effective until April 30, 2015"]
[null,null,null,null,null,null,null,null,"Rate Rider for Tax Change (2014) - effective until April 30, 2015"]
[null,null,null,null,null,null,null,null,"Retail Transmission Rate - Line and Transformation Connection Service Rate"]
[null,null,null,null,null,null,null,null,"Retail Transmission Rate - Line and Transformation Connection Service Rate - (less than 1,000 kW)"]
[null,null,null,null,null,null,null,null,"Retail Transmission Rate - Line and Transformation Connection Service Rate - Interval Metered"]
[null,null,null,null,null,null,null,null,"Retail Transmission Rate - Line and Transformation Connection Service Rate - Interval Metered (1,000 to 4,999 kW)"]
[null,null,null,null,null,null,null,null,"Retail Transmission Rate - Line and Transformation Connection Service Rate - Interval Metered (less than 1,000 kW)"]
[null,null,null,null,null,null,null,null,"Retail Transmission Rate - Line and Transformation Connection Service Rate - Interval Metered < 1,000 kW"]
[null,null,null,null,null,null,null,null,"Retail Transmission Rate - Line and Transformation Connection Service Rate - Interval Metered > 1,000 kW"]
[null,null,null,null,null,null,null,null,"Retail Transmission Rate - Line and Transformation Connection Service Rate FOR ALL SERVICE AREAS EXCEPT HENSALL"]
[null,null,null,null,null,null,null,null,"Retail Transmission Rate - Line Connection Service Rate"]
[null,null,null,null,null,null,null,null,"Retail Transmission Rate - Network Service Rate"]
[null,null,null,null,null,null,null,null,"Retail Transmission Rate - Network Service Rate - (less than 1,000 kW)"]
[null,null,null,null,null,null,null,null,"Retail Transmission Rate - Network Service Rate - Interval Metered"]
[null,null,null,null,null,null,null,null,"Retail Transmission Rate - Network Service Rate - Interval Metered (1,000 to 4,999 kW)"]
[null,null,null,null,null,null,null,null,"Retail Transmission Rate - Network Service Rate - Interval Metered (less than 1,000 kW)"]
[null,null,null,null,null,null,null,null,"Retail Transmission Rate - Network Service Rate - Interval Metered > 1,000 kW"]
[null,null,null,null,null,null,null,null,"Retail Transmission Rate - Transformation Connection Service Rate"]
[null,null,null,null,null,null,null,null,"Rider for Global Adjustment Sub-Account Disposition (2012) - effective until April 30, 2016 Applicable only for Non-RPP Customers"]
[null,null,null,null,null,null,null,null,"Rural or Remote Electricity Rate Protection Charge (RRRP)"]
[null,null,null,null,null,null,null,null,"Sentinel lights (dusk-to-dawn) connected to unmetered wires will have a flat rate monthly energy charge added to the regular customer bill. Further servicing details are available in the distributor’s Conditions of Service."]
[null,null,null,null,null,null,null,null,"Service Charge"]
[null,null,null,null,null,null,null,null,"Service Charge (per connection)"]
[null,null,null,null,null,null,null,null,"Service Charge (per customer)"]
[null,null,null,null,null,null,null,null,"Service Charge (per light)"]
[null,null,null,null,null,null,null,null,"Smart Grid Funding Adder (2014) - in effect until December 31, 2014"]
[null,null,null,null,null,null,null,null,"Smart Meter Disposition Rider"]
[null,null,null,null,null,null,null,null,"Smart Meter Entity Charge"]
[null,null,null,null,null,null,null,null,"Smart Meter Incremental Revenue Requirement Rate Rider"]
[null,null,null,null,null,null,null,null,"Standard Supply Service - Administrative Charge (if applicable)"]
[null,null,null,null,null,null,null,null,"Standby Charge - for a month where standby power is not provided, the charge is based on the applicable General Service 50 to 4,999 kW or Large Use Distribution Volumetric Charge applied to the contracted amount (e.g. Nameplate rating of generating facility)."]
[null,null,null,null,null,null,null,null,"Standby Charge - for a month where standby power is not provided. The charge is applied to the amount of reserved load transfer capacity contracted or the amount of monthly peak load displaced by a generating facility"]
[null,null,null,null,null,null,null,null,"Standby Charge - for a month where standby power is not provided. The charge is applied to the contracted amount (e.g. nameplate rating of the generation facility)."]
[null,null,null,null,null,null,null,null,"Wholesale Market Service Rate"]

{"sheet":"lists2","index":6,"n_rows":187,"n_cols":4,"rows_kept":187,"cut":false,"hidden":true,"merged":[[168,4,168,7],[170,0,170,1],[170,4,170,5],[171,0,171,1],[148,0,148,1],[149,0,149,1],[150,0,150,1],[151,0,151,1],[153,0,153,1],[154,0,154,1],[155,0,155,1],[156,0,156,1],[152,0,152,1],[105,0,105,1],[109,0,109,1],[137,0,137,1],[138,0,138,1],[139,0,139,1],[140,0,140,1],[141,0,141,1],[142,0,142,1],[143,0,143,1],[129,0,129,1],[130,0,130,1],[132,0,132,1],[133,0,133,1],[131,0,131,1],[128,0,128,1],[136,0,136,1],[92,0,92,1],[93,0,93,1],[98,0,98,1],[99,0,99,1],[100,0,100,1],[101,0,101,1],[102,0,102,1],[103,0,103,1],[104,0,104,1],[83,0,83,1],[84,0,84,1],[85,0,85,1],[86,0,86,1],[87,0,87,1],[88,0,88,1],[89,0,89,1],[90,0,90,1],[91,0,91,1],[74,0,74,1],[75,0,75,1],[76,0,76,1],[77,0,77,1],[78,0,78,1],[79,0,79,1],[80,0,80,1],[81,0,81,1],[82,0,82,1],[36,0,36,1],[46,0,46,1],[65,0,65,3],[65,4,65,7],[67,0,67,3],[67,4,67,7],[71,0,71,1],[72,0,72,1],[73,0,73,1],[21,0,21,1],[22,0,22,1],[23,0,23,1],[24,0,24,1],[25,0,25,1],[26,0,26,1],[27,0,27,1],[28,0,28,1],[29,0,29,1],[12,0,12,1],[13,0,13,1],[14,0,14,1],[15,0,15,1],[16,0,16,1],[17,0,17,1],[18,0,18,1],[19,0,19,1],[20,0,20,1],[33,0,33,1],[34,0,34,1],[35,0,35,1],[54,0,54,1],[190,0,190,1],[110,0,110,1],[111,0,111,1],[112,0,112,1],[113,0,113,1],[114,0,114,1],[115,0,115,1],[116,0,116,1],[117,0,117,1],[118,0,118,1],[119,0,119,1],[120,0,120,1],[121,0,121,1],[122,0,122,1],[123,0,123,1],[124,0,124,1],[55,0,55,1],[56,0,56,1],[57,0,57,1],[63,0,63,3],[191,0,191,1],[144,0,144,1],[145,0,145,1],[146,0,146,1],[147,0,147,1],[168,0,168,3],[178,0,178,1],[179,0,179,1],[180,0,180,1],[175,0,175,1],[176,0,176,1],[177,0,177,1],[172,0,172,1],[173,0,173,1],[174,0,174,1],[192,0,192,1],[193,0,193,1],[194,0,194,1],[186,0,186,3],[186,4,186,7],[160,0,160,3],[160,4,160,7],[161,0,161,3],[161,4,161,7],[162,0,162,3],[162,4,162,7],[163,0,163,3],[163,4,163,7],[164,0,164,3],[164,4,164,7],[165,0,165,3],[165,4,165,7],[166,0,166,3],[166,4,166,7],[167,0,167,3],[181,0,181,1],[182,0,182,1],[189,0,189,1],[167,4,167,7],[0,0,0,3],[48,0,48,5],[94,0,94,1],[95,0,95,1],[96,0,96,1],[97,0,97,1],[125,0,125,1],[126,0,126,1],[127,0,127,1],[2,0,2,3],[5,0,5,3],[6,0,6,3],[7,0,7,3],[8,0,8,3],[37,0,37,1],[38,0,38,1],[39,0,39,1],[40,0,40,1],[41,0,41,1],[45,0,45,1],[47,0,47,1],[30,0,30,1],[31,0,31,1],[32,0,32,1]]}
["RESIDENTIAL Service Classification"]
[]
[]
["APPLICATION"]
[]
[]
[]
[]
[]
[]
["MONTHLY RATES AND CHARGES - Delivery Component"]
[]
[]
[]
[]
[]
[]
[]
[]
[]
[]
[]
[]
[]
[]
[]
[]
[]
[]
[]
[]
[]
[]
[]
[]
[]
[]
[]
[]
[]
[]
[]
[]
["MONTHLY RATES AND CHARGES - Regulatory Component"]
[]
["Wholesale Market Service Rate",null,"$/kWh",4.4000000000000003E-3]
["Rural Rate Protection Charge",null,"$/kWh",1.1000000000000001E-3]
["Standard Supply Service - Administrative Charge (if applicable)",null,"$",0.25]
[]
[]
[]
[]
["ALLOWANCES"]
[]
["Transformer Allowance for Ownership - per kW of billing demand/month"]
[]
[]
["Primary Metering Allowance for transformer losses – applied to measured demand and energy"]
[]
["SPECIFIC SERVICE CHARGES"]
[]
["APPLICATION"]
[]
["The application of these rates and charges shall be in accordance with the Licence of the Distributor and any Code or Order of the Board, and amendments thereto as approved by the Board, which may be applicable to the administration of this schedule."]
[]
["No charges to meet the costs of any work or service done or furnished for the purpose of the distribution of electricity shall be made except as permitted by this schedule, unless required by the Distributor’s Licence or a Code or Order of the Board, and amendments thereto as approved by the Board, or as specified herein."]
[]
["It should be noted that this schedule does not list any charges, assessments or credits that are required by law to be invoiced by a distributor and that are not subject to Board approval, such as the Debt Retirement Charge, the Global Adjustment, the Ontario Clean Energy Benefit and the HST."]
[]
["Customer Administration"]
[]
[]
[]
[]
[]
[]
[]
[]
[]
[]
[]
[]
[]
[]
[]
[]
[]
[]
[]
[]
[]
[]
[]
[]
[]
[]
[]
[]
[]
[]
[]
[]
[]
[]
[]
[]
[]
["Non-Payment of Account"]
[]
[]
[]
[]
[]
[]
[]
[]
[]
[]
[]
[]
[]
[]
[]
[]
[]
[]
[]
[]
[]
[]
[]
[]
[]
[]
[]
[]
[]
[]
[]
[]
[]
[]
[]
[]
[]
[]
[]
[]
[]
[]
[]
[]
[]
[]
[]
[]
[]
[]
["RETAIL SERVICE CHARGES (if applicable)"]
[]
["The application of these rates and charges shall be in accordance with the Licence of the Distributor and any Code or Order of the Board, and amendments thereto as approved by the Board, which may be applicable to the administration of this schedule."]
[]
["No rates and charges for the distribution of electricity and charges to meet the costs of any work or service done or furnished for the purpose of the distribution of electricity shall be made except as permitted by this schedule, unless required by the Distributor’s Licence or a Code or Order of the Board, and amendments thereto as approved by the Board, or as specified herein."]
[]
["Unless specifically noted, this schedule does not contain any charges for the electricity commodity, be it under the Regulated Price Plan, a contract with a retailer or the wholesale market price, as applicable."]
[]
["It should be noted that this schedule does not list any charges, assessments or credits that are required by law to be invoiced by a distributor and that are not subject to Board approval, such as the Debt Retirement Charge, the Global Adjustment, the Ontario Clean Energy Benefit and the HST."]
[]
["Retail Service Charges refer to services provided by a distributor to retailers or customers related to the supply of competitive electricity."]
[]
["One-time charge, per retailer, to establish the service agreement between the distributor and the retailer",null,"$",100]
["Monthly Fixed Charge, per retailer",null,"$",20]
["Monthly Variable Charge, per customer, per retailer",null,"$/cust.",0.5]
["Distributor-consolidated billing monthly charge, per customer, per retailer",null,"$/cust.",0.3]
["Retailer-consolidated billing monthly credit, per customer, per retailer",null,"$/cust.",-0.3]
["Service Transaction Requests (STR) "]
["Request fee, per request, applied to the requesting party",null,"$",0.25]
["Processing fee, per request, applied to the requesting party",null,"$",0.5]
["Request for customer information as outlined in Section 10.6.3 and Chapter 11 of the Retail"]
["Settlement Code directly to retailers and customers, if not delivered electronically through the"]
["Electronic Business Transaction (EBT) system, applied to the requesting party "]
["Up to twice a year",null,"$","no charge"]
["More than twice a year, per request (plus incremental delivery costs)",null,"$",2]
[]
["LOSS FACTORS"]
[]
["If the distributor is not capable of prorating changed loss factors jointly with distribution rates, the revised loss factors will be implemented upon the first subsequent billing for each billing cycle."]

{"sheet":"Sheet19","index":7,"n_rows":72,"n_cols":9,"rows_kept":72,"cut":false,"hidden":true,"merged":[]}
[null,"CGAAP","CGAAP","CGAAP","MIFRS","USGAAP","ASPE","ASPE","ASPE"]
[null,"N/A",2012,2013,null,null,"N/A",2012,2013]
["LDC Info","x","x","x","x","x","x","x","x"]
["Table of Contents","x","x","x","x","x","x","x","x"]
["COS Flowchart","x","x","x","x","x","x","x","x"]
["List of Key References","x","x","x","x","x","x","x","x"]
["App.2-AA_Capital Projects","x","x","x","x","x","x","x","x"]
["App.2-AB_Capital Expenditures","x","x","x","x","x","x","x","x"]
["App.2-BA1_Fix Asset Cont.CGAAP","x","x","x","n","x","x","x","x"]
["App.2-BA2_Fix Asset Cont.MIFRS","n","n","n","x","n","n","n","n"]
["Appendix 2-BB Service Life Comp","x","x","x","x","x","x","x","x"]
["Instruction for App. 2-C MIFRS","n","n","n","x","n","n","n","n"]
["App.2-CA_CGAAP_DepExp_2011","n","n","n","x","n","n","n","n"]
["App.2-CB_MIFRS_DepExp_2011","n","n","n","x","n","n","n","n"]
["App.2-CC_MIFRS_DepExp_2012","n","n","n","x","n","n","n","n"]
["App.2-CD_MIFRS_DepExp_2013","n","n","n","x","n","n","n","n"]
["App.2-CE_MIFRS_DepExp_2014","n","n","n","x","n","n","n","n"]
["App.2-CF_CGAAP_DepExp_2012","n","n","n","x","n","n","n","n"]
["App.2-CG_MIFRS_DepExp_2012","n","n","n","x","n","n","n","n"]
["App.2-CH_MIFRS_DepExp_2013","n","n","n","x","n","n","n","n"]
["App.2-CI_MIFRS_DepExp_2014","n","n","n","x","n","n","n","n"]
["App.2-CJ_CGAAP_DepExp_2012","n","n","n","x","n","n","n","n"]
["App.2-CK_CGAAP_DepExp_2013","n","n","n","x","n","n","n","n"]
["App.2-CL_MIFRS_DepExp_2013","n","n","n","x","n","n","n","n"]
["App.2-CM_MIFRS_DepExp_2014","n","n","n","x","n","n","n","n"]
["Instruction for App. 2-C CGAAP","x","x","x","n","n","x","x","x"]
["App.2-CN_OldCGAAP_DepExp_2012","x","x","n","n","n","x","x","n"]
["App.2-CO_NewCGAAP_DepExp_2012","x","x","n","n","n","x","x","n"]
["App.2-CP_NewCGAAP_DepExp_2013","x","x","n","n","n","x","x","n"]
["App.2-CQ NewCGAAP_DepExp_2014","x","x","n","n","n","x","x","n"]
["App.2-CR_OldCGAAP_DepExp_2012","x","n","x","n","n","x","n","x"]
["App.2-CS_OldCGAAP_DepExp_2013","x","n","x","n","n","x","n","x"]
["App.2-CT_NewCGAAP_DepExp_2013","x","n","x","n","n","x","n","x"]
["App.2-CU_NewCGAAP_DepExp_2014","x","n","x","n","n","x","n","x"]
["App.2-CV_USGAAP_DepExp","n","n","n","n","x","n","n","n"]
["App.2-DA_Overhead","n","n","n","x","n","n","n","n"]
["App.2-DB_Overhead","x","x","x","n","n","x","x","x"]
["App.2-EA_PP&E Deferral Account","n","n","n","x","x","n","n","n"]
["App.2-EB_PP&E Deferral Account","n","n","n","x","x","n","n","n"]
["App.2-EC_PP&E Deferral Account","n","n","n","x","x","n","n","n"]
["App.2-ED_Account 1576 (2012)","x","x","n","x","x","x","x","n"]
["App.2-EE_Account 1576 (2013)","x","n","x","x","x","x","n","x"]
["App.2-FA Proposed REG Invest.","o","o","o","o","o","o","o","o"]
["App.2-FB Calc of REG Improvemnt","o","o","o","o","o","o","o","o"]
["App.2-FC Calc of REG Expansion","o","o","o","o","o","o","o","o"]
["App.2-G SQI","x","x","x","x","x","x","x","x"]
["App.2-H_Other_Oper_Rev","x","x","x","x","x","x","x","x"]
["App.2-I LF_CDM_WF","x","x","x","x","x","x","x","x"]
["App.2-JA_OM&A_Summary_Analys","x","x","x","x","x","x","x","x"]
["App.2-JB_OM&A_Cost _Drivers","x","x","x","x","x","x","x","x"]
["App.2-JC_OMA Programs","x","x","x","x","x","x","x","x"]
["App.2-K_Employee Costs","x","x","x","x","x","x","x","x"]
["App.2-L_OM&A_per_Cust_FTEE","x","x","x","x","x","x","x","x"]
["App.2-M_Regulatory_Costs","x","x","x","x","x","x","x","x"]
["App.2-N_Corp_Cost_Allocation","x","x","x","x","x","x","x","x"]
["App.2-OA Capital Structure","x","x","x","x","x","x","x","x"]
["App.2-OB_Debt Instruments","x","x","x","x","x","x","x","x"]
["App.2-P_Cost_Allocation","x","x","x","x","x","x","x","x"]
["App.2-Q_Cost of Serv. Emb. Dx","e","e","e","e","e","e","e","e"]
["App.2-R_Loss Factors","x","x","x","x","x","x","x","x"]
["App.2-S_Stranded Meters","x","x","x","x","x","x","x","x"]
["App.2-TA_1592_Tax_Variance","x","x","x","x","x","x","x","x"]
["App.2-TB_1592_HST-OVAT","x","x","x","x","x","x","x","x"]
["App.2-U_IFRS Transition Costs","x","x","x","x","x","x","x","x"]
["App.2-V_Rev_Reconciliation","x","x","x","x","x","x","x","x"]
["App.2-W_Bill Impacts","x","x","x","x","x","x","x","x"]
["App.2-YA_MIFRS Summary Impacts","n","n","n","x","n","n","n","n"]
["App. 2-YB_CGAAP Summary Impacts","x","x","x","n","n","x","x","x"]
["App. 2-Z_Tariff","x","x","x","x","x","x","x","x"]
["lists","n","n","n","n","n","n","n","n"]
["lists2","n","n","n","n","n","n","n","n"]
["Sheet19","n","n","n","n","n","n","n","n"]

{"sheet":"Sheet1","index":8,"n_rows":0,"n_cols":0,"rows_kept":0,"cut":false,"hidden":true,"merged":[]}